Workbook

Sheet data
A1: Inset chart title here in cell G4 (format station number and name) | G1: USHCN STATION: WINTHROP 1 WSW, WA (459376) | AR1: 1981-2010 slope | AS1: =SLOPE(AS61:AS90,$AR$61:$AR$90) -> 3.870323935e-05 | AU1: =SLOPE(AU61:AU90,$AR$61:$AR$90) -> 0.0001387653636 | AV1: =SLOPE(AV61:AV90,$AR$61:$AR$90) -> 0.0001809698947 | AW1: =SLOPE(AW61:AW90,$AR$61:$AR$90) -> 0.0002248188979 | AX1: =SLOPE(AX61:AX90,$AR$61:$AR$90) -> -2.974084205e-05 | AZ1: =SLOPE(AZ61:AZ90,$AR$61:$AR$90) -> -0.0001319334036 | BA1: =SLOPE(BA61:BA90,$AR$61:$AR$90) -> -2.422700482e-05 | BB1: =SLOPE(BB61:BB90,$AR$61:$AR$90) -> 8.382465751e-05 | BC1: =SLOPE(BC61:BC90,$AR$61:$AR$90) -> -4.401174093e-05 | BE1: =SLOPE(BE61:BE90,$AR$61:$AR$90) -> 6.070113683e-05 | BF1: =SLOPE(BF61:BF90,$AR$61:$AR$90) -> 0.0001286152987 | BG1: =SLOPE(BG61:BG90,$AR$61:$AR$90) -> 0.0002019503199 | BH1: =SLOPE(BH61:BH90,$AR$61:$AR$90) -> -2.332022371e-05 | BJ1: =SLOPE(BJ61:BJ90,$AR$61:$AR$90) -> 7.305111416e-05 | BK1: =SLOPE(BK61:BK90,$AR$61:$AR$90) -> 0.0001514616643 | BL1: =SLOPE(BL61:BL90,$AR$61:$AR$90) -> 0.0002305018372 | BM1: =SLOPE(BM61:BM90,$AR$61:$AR$90) -> -2.363440619e-05 | BO1: =SLOPE(BO61:BO90,$AR$61:$AR$90) -> 2.573581855e-05 | BP1: =SLOPE(BP61:BP90,$AR$61:$AR$90) -> 0.0001043279481 | BQ1: =SLOPE(BQ61:BQ90,$AR$61:$AR$90) -> 0.0001849808419 | BR1: =SLOPE(BR61:BR90,$AR$61:$AR$90) -> 2.539511365e-05 | BT1: =SLOPE(BT61:BT90,$AR$61:$AR$90) -> 2.701432378e-05 | BU1: =SLOPE(BU61:BU90,$AR$61:$AR$90) -> 9.652016337e-05 | BV1: =SLOPE(BV61:BV90,$AR$61:$AR$90) -> 0.0001675994223 | BY1: 1981-2010 mean annual pcp | CB1: =AVERAGE(BM61:BM90) -> 14.46366667 | CI1: SOI Jun-Nov standardized values | CK1: PDO Oct-Mar avg standardized values
A2: Insert data (copy and paste from web site download) starting at cell A4 (cell A3 if you have the Source line in the copy selection too) | AM2: based on | AR2: 30-yr total change | AS2: =ROUND((30*365*AS1)/($AR$61*AS1+INTERCEPT(AS61:AS90,$AR$61:$AR$90))*100,1) -> 7.7 | AU2: =ROUND((30*365*AU1),2) -> 1.52 | AV2: =ROUND((30*365*AV1),2) -> 1.98 | AW2: =ROUND((30*365*AW1),2) -> 2.46 | AX2: =ROUND((30*365*AX1)/($AR$61*AX1+INTERCEPT(AX61:AX90,$AR$61:$AR$90))*100,1) -> -10.7 | AZ2: =ROUND((30*365*AZ1),2) -> -1.44 | BA2: =ROUND((30*365*BA1),2) -> -0.27 | BB2: =ROUND((30*365*BB1),2) -> 0.92 | BC2: =ROUND((30*365*BC1)/($AR$61*BC1+INTERCEPT(BC61:BC90,$AR$61:$AR$90))*100,1) -> -18.3 | BE2: =ROUND((30*365*BE1),2) -> 0.66 | BF2: =ROUND((30*365*BF1),2) -> 1.41 | BG2: =ROUND((30*365*BG1),2) -> 2.21 | BH2: =ROUND((30*365*BH1)/($AR$61*BH1+INTERCEPT(BH61:BH90,$AR$61:$AR$90))*100,1) -> -7 | BJ2: =ROUND((30*365*BJ1),2) -> 0.8 | BK2: =ROUND((30*365*BK1),2) -> 1.66 | BL2: =ROUND((30*365*BL1),2) -> 2.52 | BM2: =ROUND((30*365*BM1)/($AR$61*BM1+INTERCEPT(BM61:BM90,$AR$61:$AR$90))*100,1) -> -1.8 | BO2: =ROUND((30*365*BO1),2) -> 0.28 | BP2: =ROUND((30*365*BP1),2) -> 1.14 | BQ2: =ROUND((30*365*BQ1),2) -> 2.03 | BR2: =ROUND((30*365*BR1)/($AR$61*BR1+INTERCEPT(BR61:BR90,$AR$61:$AR$90))*100,1) -> 2.9 | BT2: =ROUND((30*365*BT1),2) -> 0.3 | BU2: =ROUND((30*365*BU1),2) -> 1.06 | BV2: =ROUND((30*365*BV1),2) -> 1.84 | BY2: 1981-2010 mean annual avg temp | CB2: =AVERAGE(BP61:BP90) -> 45.1125 | CI2: http://www.cpc.noaa.gov/data/indices/soi | CK2: http://jisao.washington.edu/pdo/PDO.latest
A3: Source: MJ Menne CN Williams Jr. RS Vose NOAA National Climatic Data Center Asheville NC | I3: macro is "Control w" | M3: Winter | R3: Spring | W3: Summer | AB3: Fall | AG3: Hydrologic Year | AM3: 1952-2009 avg | AS3: Total Winter Pcp | AU3: Average Winter Max T | AV3: Average Winter Mean T | AW3: Average Winter Min T | AX3: Total Spring Pcp | AZ3: Average Spring Max T | BA3: Average Spring Mean T | BB3: Average Spring Min T | BC3: Total Summer Pcp | BE3: Average Summer Max T | BF3: Average Summer Mean T | BG3: Average Summer Min T | BH3: Total Fall Pcp | BJ3: Average Fall Max T | BK3: Average Fall Mean T | BL3: Average Fall Min T | BM3: Hydrologic Year | BO3: Average WY Max T | BP3: Average WY Mean T | BQ3: Average WY Min T | BR3: Cool Season Pcp | BS3: Cool Season Temps | CI3: base period 81-10 | CJ3: SOI | CL3: PDO | CQ3: Hydrologic Year | CS3: Average WY Max | CT3: Average WY Mean | CU3: Average WY Min | CV3: Cool Season Pcp | CW3: Cool Season Temps
A4: State_id | B4: YEAR | C4: Month | D4: PRECIP (in) | E4: TMAX (F) | F4: TMEAN (F) | G4: TMIN (F) | I4: Station info | L4: Year | M4: D-F pcp (in) | N4: D-F pcp (%) | O4: D-F max T (F) | P4: D-F avg T (F) | Q4: D-F min T (F) | R4: M-M pcp (in) | S4: M-M pcp (%) | T4: M-M max T (F) | U4: M-M avg T (F) | V4: M-M min T (F) | W4: J-A pcp (in) | X4: J-A pcp (%) | Y4: J-A max T (F) | Z4: J-A avg T (F) | AA4: J-A min T (F) | AB4: S-N pcp (in) | AC4: S-N pcp (%) | AD4: S-N max T (F) | AE4: S-N avg T (F) | AF4: S-N min T (F) | AG4: WY Total Pcp (in) | AH4: WY pcp (%) | AI4: WY max T (F) | AJ4: WY avg T (F) | AK4: WY min T (F) | AL4: Oct-Mar pcp (in) | AM4: Oct-Mar pcp (%) | AN4: Oct-Mar max T (F) | AO4: Oct-Mar avg T (F) | AP4: Oct-Mar min T (F) | AR4: Year | AS4: D-F pcp (in) | AT4: D-F pcp (%) | AU4: D-F max T (F) | AV4: D-F avg T (F) | AW4: D-F min T (F) | AX4: M-M pcp (in) | AY4: M-M pcp (%) | AZ4: M-M max T (F) | BA4: M-M avg T (F) | BB4: M-M min T (F) | BC4: J-A pcp (in) | BD4: J-A pcp (%) | BE4: J-A max T (F) | BF4: J-A avg T (F) | BG4: J-A min T (F) | BH4: S-N pcp (in) | BI4: S-N pcp (%) | BJ4: S-N max T (F) | BK4: S-N avg T (F) | BL4: S-N min T (F) | BM4: WY Total Pcp (in) | BN4: WY pcp (%) | BO4: WY max T (F) | BP4: WY avg T (F) | BQ4: WY min T (F) | BR4: Oct-Mar pcp (in) | BS4: Oct-Mar pcp (%) | BT4: Oct-Mar max T (F) | BU4: Oct-Mar avg T (F) | BV4: Oct-Mar min T (F) | BX4: Year | BY4: Month | BZ4: Pcp | CA4: Tavg | CB4: Pcp mean | CC4: Tavg mean | CE4: Month | CF4: Pcp mean | CG4: Tavg mean | CI4: SOI Year | CJ4: Jun-Nov | CK4: O-M PDO Year | CL4: Oct-Mar avg PDO | CM4: O-M Temp/Pcp Year | CN4: Oct-Mar pcp (%) | CO4: Oct-Mar avg temp (F) | CQ4: WY Total Pcp (in) | CR4: WY pcp (%) | CS4: WY max T (F) | CT4: WY avg T (F) | CU4: WY min T (F) | CV4: Oct-Mar pcp (in) | CW4: Oct-Mar pcp (%) | CX4: Oct-Mar max T (F) | CY4: Oct-Mar avg T (F) | CZ4: Oct-Mar min T (F)
A5: '459376' | B5: 1924 | C5: 1 | D5: 1.29 | E5: 24.6 | F5: 13 | G5: 1.4 | I5: Latitute | J5: 48.4539 | L5: 1924-01-01 | AR5: 1925-01-01 | AS5: 5.07 | AT5: 0.8770723068 | AU5: 31.66666667 | AV5: 21.03333333 | AW5: 10.36666667 | AX5: 1.16 | AY5: 0.4659302826 | AZ5: 63.76666667 | BA5: 47.76666667 | BB5: 31.73333333 | BC5: 0.95 | BD5: 0.4283183941 | BE5: 85.3 | BF5: 66.1 | BG5: 46.83333333 | BH5: 2.87 | BI5: 0.8619851259 | BJ5: 60.1 | BK5: 45 | BL5: 29.83333333 | BM5: 11.12 | BN5: 0.8048736353 | BO5: 59.55 | BP5: 44.65 | BQ5: 29.70833333 | BR5: 8.7 | BS5: 0.8890533326 | BT5: 40.85 | BU5: 29.31666667 | BV5: 17.73333333 | BX5: 1981 | BY5: 1 | BZ5: 1.09 | CA5: 30 | CB5: =AVERAGE(BZ5:BZ34) -> 1.992 | CC5: =AVERAGE(CA5:CA34) -> 22.08333333 | CE5: 1 | CF5: =CB5 -> 1.992 | CG5: =CC5 -> 22.08333333 | CI5: 1951 | CJ5: -0.65 | CK5: 1952-01-01 | CL5: -0.8966666667 | CM5: 1952-01-01 | CN5: 1.120002819 | CO5: 27.43333333
A6: '459376' | B6: 1924 | C6: 2 | D6: 1.48 | E6: 40.5 | F6: 30.1 | G6: 19.7 | I6: Longitude | J6: -120.1936 | L6: 1924-02-01 | AR6: 1926-01-01 | AS6: 3.96 | AT6: 0.6850505591 | AU6: 35.9 | AV6: 27.93333333 | AW6: 19.93333333 | AX6: 0.59 | AY6: 0.2369817817 | AZ6: 67.1 | BA6: 49 | BB6: 30.83333333 | BC6: 0.61 | BD6: 0.2750254951 | BE6: 87.2 | BF6: 67.63333333 | BG6: 47.96666667 | BH6: 3.78 | BI6: 1.135297483 | BJ6: 58.53333333 | BK6: 44.93333333 | BL6: 31.3 | BM6: 8.79 | BN6: 0.6362265517 | BO6: 61.975 | BP6: 46.89166667 | BQ6: 31.73333333 | BR6: 6.59 | BS6: 0.673432352 | BT6: 45.6 | BU6: 34.1 | BV6: 22.53333333 | BX6: 1982 | BY6: 1 | BZ6: 2.29 | CA6: 18.8 | CE6: 2 | CF6: =CB35 -> 1.314 | CG6: =CC35 -> 27.95 | CI6: 1952 | CJ6: 0.25 | CK6: 1953-01-01 | CL6: -0.4716666667 | CM6: 1953-01-01 | CN6: 0.8870095319 | CO6: 34.16666667
A7: '459376' | B7: 1924 | C7: 3 | D7: 0.07 | E7: 51.3 | F7: 37.9 | G7: 24.5 | I7: Elevation (m) | J7: 534.9 | L7: 1924-03-01 | AR7: 1927-01-01 | AS7: 4.22 | AT7: 0.7300286262 | AU7: 32.2 | AV7: 21.66666667 | AW7: 11.03333333 | AX7: 2.09 | AY7: 0.8394778368 | AZ7: 58.3 | BA7: 43.4 | BB7: 28.4 | BC7: 1.87 | BD7: 0.8431109441 | BE7: 84 | BF7: 65.5 | BG7: 46.96666667 | BH7: 5.52 | BI7: 1.657894737 | BJ7: 55.56666667 | BK7: 42.73333333 | BL7: 29.83333333 | BM7: 11.97 | BN7: 0.8663972495 | BO7: 58.31666667 | BP7: 44.075 | BQ7: 29.775 | BR7: 7.56 | BS7: 0.772556689 | BT7: 42.13333333 | BU7: 30.56666667 | BV7: 18.93333333 | BX7: 1983 | BY7: 1 | BZ7: 4.32 | CA7: 27 | CE7: 3 | CF7: =CB65 -> 1.029 | CG7: =CC65 -> 38.17666667 | CI7: 1953 | CJ7: -0.4166666667 | CK7: 1954-01-01 | CL7: -0.75 | CM7: 1954-01-01 | CN7: 0.8655496238 | CO7: 31.31666667
A8: '459376' | B8: 1924 | C8: 4 | D8: 0.11 | E8: 61.3 | F8: 44.2 | G8: 27.1 | I8: ft | J8: =CONVERT(J7,"m","ft") -> 1754.92126 | L8: 1924-04-01 | AR8: 1928-01-01 | AS8: 2.01 | AT8: 0.3477150565 | AU8: 32.5 | AV8: 22.03333333 | AW8: 11.5 | AX8: 2.06 | AY8: 0.8274279157 | AZ8: 62.63333333 | BA8: 46.8 | BB8: 30.93333333 | BC8: 2.66 | BD8: 1.199291503 | BE8: 84.16666667 | BF8: 66.4 | BG8: 48.6 | BH8: 1.29 | BI8: 0.3874427918 | BJ8: 60.8 | BK8: 45.26666667 | BL8: 29.7 | BM8: 11.17 | BN8: 0.8084926715 | BO8: 59.45833333 | BP8: 44.8 | BQ8: 30.08333333 | BR8: 6.84 | BS8: 0.6989798615 | BT8: 41.38333333 | BU8: 29.86666667 | BV8: 18.28333333 | BX8: 1984 | BY8: 1 | BZ8: 0.95 | CA8: 20.8 | CE8: 4 | CF8: =CB95 -> 0.756 | CG8: =CC95 -> 46.5 | CI8: 1954 | CJ8: 0.3666666667 | CK8: 1955-01-01 | CL8: -0.3066666667 | CM8: 1955-01-01 | CN8: 0.9135789418 | CO8: 28.66666667
A9: '459376' | B9: 1924 | C9: 5 | D9: 0.03 | E9: 78.7 | F9: 58.5 | G9: 38.2 | L9: 1924-05-01 | AR9: 1929-01-01 | AS9: 2.89 | AT9: 0.4999485141 | AU9: 24.63333333 | AV9: 13.36666667 | AW9: 2.066666667 | AX9: 1.51 | AY9: 0.6065126955 | AZ9: 61.36666667 | BA9: 45.73333333 | BB9: 30.06666667 | BC9: 1.76 | BD9: 0.7935161827 | BE9: 84.36666667 | BF9: 65 | BG9: 45.6 | BH9: 0.46 | BI9: 0.1381578947 | BJ9: 61.2 | BK9: 44.03333333 | BL9: 26.83333333 | BM9: 7.47 | BN9: 0.5406839978 | BO9: 57.45833333 | BP9: 42.13333333 | BQ9: 26.775 | BR9: 4.45 | BS9: 0.4547456701 | BT9: 38.76666667 | BU9: 26.35 | BV9: 13.91666667 | BX9: 1985 | BY9: 1 | BZ9: 0.39 | CA9: 18.3 | CE9: 5 | CF9: =CB125 -> 1.095 | CG9: =CC125 -> 54.48 | CI9: 1955 | CJ9: 1.4 | CK9: 1956-01-01 | CL9: -2.735 | CM9: 1956-01-01 | CN9: 1.404091125 | CO9: 23.95
A10: '459376' | B10: 1924 | C10: 6 | D10: 0.56 | E10: 78.8 | F10: 61.7 | G10: 44.6 | L10: 1924-06-01 | AR10: 1930-01-01 | AS10: 4.12 | AT10: 0.7127293696 | AU10: 28.76666667 | AV10: 16.86666667 | AW10: 4.9 | AX10: 1.47 | AY10: 0.590446134 | AZ10: 64 | BA10: 47.23333333 | BB10: 30.4 | BC10: 2.98 | BD10: 1.343567173 | BE10: 84.76666667 | BF10: 65.73333333 | BG10: 46.7 | BH10: 2.08 | BI10: 0.6247139588 | BJ10: 57.93333333 | BK10: 44 | BL10: 29.96666667 | BM10: 10.08 | BN10: 0.7295976838 | BO10: 59.84166667 | BP10: 43.69166667 | BQ10: 27.5 | BR10: 4.97 | BS10: 0.50788449 | BT10: 41.85 | BU10: 27.75 | BV10: 13.61666667 | BX10: 1986 | BY10: 1 | BZ10: 2.39 | CA10: 24.1 | CE10: 6 | CF10: =CB155 -> 1.149666667 | CG10: =CC155 -> 61.00333333 | CI10: 1956 | CJ10: 0.9166666667 | CK10: 1957-01-01 | CL10: -1.36 | CM10: 1957-01-01 | CN10: 0.9105132407 | CO10: 25.91666667
A11: '459376' | B11: 1924 | C11: 7 | D11: 0.1 | E11: 88.3 | F11: 69.4 | G11: 50.5 | L11: 1924-07-01 | AR11: 1931-01-01 | AS11: 3.04 | AT11: 0.5258973989 | AU11: 33.1 | AV11: 24.3 | AW11: 15.46666667 | AX11: 0.75 | AY11: 0.3012480275 | AZ11: 63.7 | BA11: 47.36666667 | BB11: 31 | BC11: 1.28 | BD11: 0.5771026783 | BE11: 85.13333333 | BF11: 66.73333333 | BG11: 48.33333333 | BH11: 1.76 | BI11: 0.528604119 | BJ11: 58.16666667 | BK11: 45.46666667 | BL11: 32.7 | BM11: 6.81 | BN11: 0.4929127209 | BO11: 59.6 | BP11: 45.63333333 | BQ11: 31.625 | BR11: 4.62 | BS11: 0.4721179766 | BT11: 41.53333333 | BU11: 30.91666667 | BV11: 20.25 | BX11: 1987 | BY11: 1 | BZ11: 2.13 | CA11: 20.4 | CE11: 7 | CF11: =CB185 -> 0.726 | CG11: =CC185 -> 67.35666667 | CI11: 1957 | CJ11: -0.3333333333 | CK11: 1958-01-01 | CL11: 0.2916666667 | CM11: 1958-01-01 | CN11: 1.156791233 | CO11: 33.08333333
A12: '459376' | B12: 1924 | C12: 8 | D12: 0.55 | E12: 84.2 | F12: 66.5 | G12: 48.7 | L12: 1924-08-01 | AR12: 1932-01-01 | AS12: 6.05 | AT12: 1.046605021 | AU12: 29.23333333 | AV12: 19.86666667 | AW12: 10.4 | AX12: 1.67 | AY12: 0.6707789413 | AZ12: 61 | BA12: 47 | BB12: 32.93333333 | BC12: 0.3 | BD12: 0.1352584402 | BE12: 83.46666667 | BF12: 65.93333333 | BG12: 48.33333333 | BH12: 3.68 | BI12: 1.105263158 | BJ12: 59.1 | BK12: 45.73333333 | BL12: 32.3 | BM12: 9.19 | BN12: 0.6651788407 | BO12: 58.525 | BP12: 44.59166667 | BQ12: 30.59166667 | BR12: 7.9 | BS12: 0.807301302 | BT12: 40.2 | BU12: 29.35 | BV12: 18.41666667 | BX12: 1988 | BY12: 1 | BZ12: 0.91 | CA12: 17.2 | CE12: 8 | CF12: =CB215 -> 0.5223333333 | CG12: =CC215 -> 66.69666667 | CI12: 1958 | CJ12: 0.1666666667 | CK12: 1959-01-01 | CL12: 0 | CM12: 1959-01-01 | CN12: 1.460295646 | CO12: 28.53333333
A13: '459376' | B13: 1924 | C13: 9 | D13: 0.46 | E13: 76.4 | F13: 57.8 | G13: 39.2 | L13: 1924-09-01 | AR13: 1933-01-01 | AS13: 3.31 | AT13: 0.5726053916 | AU13: 30.66666667 | AV13: 19.76666667 | AW13: 8.766666667 | AX13: 2.68 | AY13: 1.076459618 | AZ13: 58.06666667 | BA13: 44.2 | BB13: 30.3 | BC13: 0.8 | BD13: 0.360689174 | BE13: 85.43333333 | BF13: 65.9 | BG13: 46.33333333 | BH13: 3.4 | BI13: 1.021167048 | BJ13: 57.63333333 | BK13: 44.7 | BL13: 31.7 | BM13: 10.92 | BN13: 0.7903974908 | BO13: 57.34166667 | BP13: 43.31666667 | BQ13: 29.225 | BR13: 8.18 | BS13: 0.8359145127 | BT13: 39.86666667 | BU13: 28.96666667 | BV13: 17.96666667 | BX13: 1989 | BY13: 1 | BZ13: 0.63 | CA13: 21.4 | CE13: 9 | CF13: =CB245 -> 0.4316666667 | CG13: =CC245 -> 58.11666667 | CI13: 1959 | CJ13: 0.15 | CK13: 1960-01-01 | CL13: 0.3833333333 | CM13: 1960-01-01 | CN13: 0.9881776697 | CO13: 28.96666667
A14: '459376' | B14: 1924 | C14: 10 | D14: 1.15 | E14: 58.6 | F14: 44.8 | G14: 30.9 | L14: 1924-10-01 | AR14: 1934-01-01 | AS14: 7.66 | AT14: 1.325123051 | AU14: 36.13333333 | AV14: 27 | AW14: 17.76666667 | AX14: 1.83 | AY14: 0.7350451872 | AZ14: 67.36666667 | BA14: 50.06666667 | BB14: 32.73333333 | BC14: 0.71 | BD14: 0.3201116419 | BE14: 85.03333333 | BF14: 66.4 | BG14: 47.73333333 | BH14: 6.7 | BI14: 2.012299771 | BJ14: 57.6 | BK14: 45.83333333 | BL14: 34.06666667 | BM14: 13.74 | BN14: 0.9945111285 | BO14: 61.6 | BP14: 47.11666667 | BQ14: 32.58333333 | BR14: 11.53 | BS14: 1.178251141 | BT14: 45 | BU14: 33.9 | BV14: 22.73333333 | BX14: 1990 | BY14: 1 | BZ14: 3.41 | CA14: 25 | CE14: 10 | CF14: =CB275 -> 1.074333333 | CG14: =CC275 -> 46.01 | CI14: 1960 | CJ14: 0.45 | CK14: 1961-01-01 | CL14: 0.2883333333 | CM14: 1961-01-01 | CN14: 0.9891995701 | CO14: 30.05
A15: '459376' | B15: 1924 | C15: 11 | D15: 2.48 | E15: 38.9 | F15: 28.9 | G15: 18.9 | L15: 1924-11-01 | AR15: 1935-01-01 | AS15: 4.38 | AT15: 0.7577074366 | AU15: 32.1 | AV15: 22.96666667 | AW15: 13.76666667 | AX15: 1.16 | AY15: 0.4659302826 | AZ15: 59.16666667 | BA15: 43.5 | BB15: 27.83333333 | BC15: 0.77 | BD15: 0.3471633299 | BE15: 82.06666667 | BF15: 63.93333333 | BG15: 45.73333333 | BH15: 1.16 | BI15: 0.3483981693 | BJ15: 58.73333333 | BK15: 44.23333333 | BL15: 29.7 | BM15: 12.46 | BN15: 0.9018638036 | BO15: 58.71666667 | BP15: 44.66666667 | BQ15: 30.575 | BR15: 11.27 | BS15: 1.151681731 | BT15: 41.23333333 | BU15: 31.06666667 | BV15: 20.86666667 | BX15: 1991 | BY15: 1 | BZ15: 0.9 | CA15: 19.6 | CE15: 11 | CF15: =CB305 -> 2.033666667 | CG15: =CC305 -> 32.03333333 | CI15: 1961 | CJ15: 0.1333333333 | CK15: 1962-01-01 | CL15: -1.78 | CM15: 1962-01-01 | CN15: 0.6407315397 | CO15: 27.6
A16: '459376' | B16: 1924 | C16: 12 | D16: 1.34 | E16: 24.9 | F16: 14.5 | G16: 4.1 | L16: 1924-12-01 | AR16: 1936-01-01 | AS16: 5.14 | AT16: 0.8891817864 | AU16: 25.9 | AV16: 15.73333333 | AW16: 5.566666667 | AX16: 1.77 | AY16: 0.710945345 | AZ16: 62.63333333 | BA16: 46.83333333 | BB16: 30.93333333 | BC16: 4.96 | BD16: 2.236272879 | BE16: 83.7 | BF16: 65.7 | BG16: 47.7 | BH16: 0.82 | BI16: 0.2462814645 | BJ16: 61.76666667 | BK16: 45.6 | BL16: 29.36666667 | BM16: 13.45 | BN16: 0.973520719 | BO16: 57.45 | BP16: 42.84166667 | BQ16: 28.2 | BR16: 6.34 | BS16: 0.6478848424 | BT16: 36.78333333 | BU16: 25.48333333 | BV16: 14.16666667 | BX16: 1992 | BY16: 1 | BZ16: 1.45 | CA16: 24.9 | CE16: 12 | CF16: =CB335 -> 2.373666667 | CG16: =CC335 -> 20.93333333 | CI16: 1962 | CJ16: 0.5166666667 | CK16: 1963-01-01 | CL16: -0.6516666667 | CM16: 1963-01-01 | CN16: 0.7541624822 | CO16: 32.66666667
A17: '459376' | B17: 1925 | C17: 1 | D17: 2.45 | E17: 29.4 | F17: 18 | G17: 6.5 | L17: 1925-01-01 | M17: =SUM($D16:$D18) -> 5.07 | N17: =M17/M$1052 -> 0.8770723068 | O17: =AVERAGE($E16:$E18) -> 31.66666667 | P17: =AVERAGE($F16:$F18) -> 21.03333333 | Q17: =AVERAGE($G16:$G18) -> 10.36666667 | R17: =SUM($D19:$D21) -> 1.16 | S17: =R17/R$1052 -> 0.4659302826 | T17: =AVERAGE($E19:$E21) -> 63.76666667 | U17: =AVERAGE($F19:$F21) -> 47.76666667 | V17: =AVERAGE($G19:$G21) -> 31.73333333 | W17: =SUM($D22:$D24) -> 0.95 | X17: =W17/W$1052 -> 0.4283183941 | Y17: =AVERAGE($E22:$E24) -> 85.3 | Z17: =AVERAGE($F22:$F24) -> 66.1 | AA17: =AVERAGE($G22:$G24) -> 46.83333333 | AB17: =SUM($D25:$D27) -> 2.87 | AC17: =AB17/AB$1052 -> 0.8619851259 | AD17: =AVERAGE($E25:$E27) -> 60.1 | AE17: =AVERAGE($F25:$F27) -> 45 | AF17: =AVERAGE($G25:$G27) -> 29.83333333 | AG17: =SUM(D14:D25) -> 11.12 | AH17: =AG17/AG$1052 -> 0.8048736353 | AI17: =AVERAGE(E14:E25) -> 59.55 | AJ17: =AVERAGE(F14:F25) -> 44.65 | AK17: =AVERAGE(G14:G25) -> 29.70833333 | AL17: =SUM(D14:D19) -> 8.7 | AM17: =AL17/AL$1052 -> 0.8890533326 | AN17: =AVERAGE(E14:E19) -> 40.85 | AO17: =AVERAGE(F14:F19) -> 29.31666667 | AP17: =AVERAGE(G14:G19) -> 17.73333333 | AR17: 1937-01-01 | AS17: 4.6 | AT17: 0.795765801 | AU17: 26.4 | AV17: 15.56666667 | AW17: 4.666666667 | AX17: 3.76 | AY17: 1.510256778 | AZ17: 59.73333333 | BA17: 45.53333333 | BB17: 31.23333333 | BC17: 3.47 | BD17: 1.564489292 | BE17: 81.26666667 | BF17: 64.63333333 | BG17: 47.93333333 | BH17: 5.59 | BI17: 1.678918764 | BJ17: 62.6 | BK17: 48.53333333 | BL17: 34.43333333 | BM17: 14.2 | BN17: 1.027806261 | BO17: 57.56666667 | BP17: 43.16666667 | BQ17: 28.7 | BR17: 6.67 | BS17: 0.681607555 | BT17: 39.9 | BU17: 27.56666667 | BV17: 15.16666667 | BX17: 1993 | BY17: 1 | BZ17: 1.22 | CA17: 15.2 | CI17: 1963 | CJ17: -0.5333333333 | CK17: 1964-01-01 | CL17: -0.7916666667 | CM17: 1964-01-01 | CN17: 0.9094913403 | CO17: 29.71666667
A18: '459376' | B18: 1925 | C18: 2 | D18: 1.28 | E18: 40.7 | F18: 30.6 | G18: 20.5 | L18: 1925-02-01 | AR18: 1938-01-01 | AS18: 6.1 | AT18: 1.055254649 | AU18: 32.56666667 | AV18: 23.53333333 | AW18: 14.46666667 | AX18: 1.69 | AY18: 0.6788122221 | AZ18: 60.8 | BA18: 46.06666667 | BB18: 31.33333333 | BC18: 1.75 | BD18: 0.789007568 | BE18: 86.03333333 | BF18: 67.1 | BG18: 48.13333333 | BH18: 3.23 | BI18: 0.9701086957 | BJ18: 62.63333333 | BK18: 47.96666667 | BL18: 33.26666667 | BM18: 14.29 | BN18: 1.034320526 | BO18: 60.86666667 | BP18: 46.56666667 | BQ18: 32.24166667 | BR18: 10.98 | BS18: 1.12204662 | BT18: 42.46666667 | BU18: 31.96666667 | BV18: 21.43333333 | BX18: 1994 | BY18: 1 | BZ18: 1.07 | CA18: 25.7 | CI18: 1964 | CJ18: 0.95 | CK18: 1965-01-01 | CL18: -0.8416666667 | CM18: 1965-01-01 | CN18: 0.9575206582 | CO18: 29
A19: '459376' | B19: 1925 | C19: 3 | D19: 0 | E19: 52.6 | F19: 39.1 | G19: 25.5 | L19: 1925-03-01 | AR19: 1939-01-01 | AS19: 2.8 | AT19: 0.4843791832 | AU19: 33.03333333 | AV19: 22.93333333 | AW19: 12.76666667 | AX19: 0.88 | AY19: 0.3534643523 | AZ19: 62.23333333 | BA19: 46.76666667 | BB19: 31.23333333 | BC19: 0.89 | BD19: 0.401266706 | BE19: 84.03333333 | BF19: 66.1 | BG19: 48.1 | BH19: 1.29 | BI19: 0.3874427918 | BJ19: 62.36666667 | BK19: 47.53333333 | BL19: 32.63333333 | BM19: 6.94 | BN19: 0.5023222149 | BO19: 60.14166667 | BP19: 45.63333333 | BQ19: 31.05833333 | BR19: 5.05 | BS19: 0.5160596931 | BT19: 41.91666667 | BU19: 30.63333333 | BV19: 19.28333333 | BX19: 1995 | BY19: 1 | BZ19: 4.43 | CA19: 21.3 | CI19: 1965 | CJ19: -1.133333333 | CK19: 1966-01-01 | CL19: -0.505 | CM19: 1966-01-01 | CN19: 0.764381486 | CO19: 30.5
A20: '459376' | B20: 1925 | C20: 4 | D20: 0.75 | E20: 64.2 | F20: 48 | G20: 31.8 | L20: 1925-04-01 | AR20: 1940-01-01 | AS20: 7.07 | AT20: 1.223057438 | AU20: 35.03333333 | AV20: 26.63333333 | AW20: 18.23333333 | AX20: 2.87 | AY20: 1.152775785 | AZ20: 63.5 | BA20: 49.1 | BB20: 34.66666667 | BC20: 0.3 | BD20: 0.1352584402 | BE20: 85.4 | BF20: 67.26666667 | BG20: 49.1 | BH20: 5.14 | BI20: 1.543764302 | BJ20: 60.4 | BK20: 47.5 | BL20: 34.53333333 | BM20: 12.33 | BN20: 0.8924543097 | BO20: 61.70833333 | BP20: 47.9 | BQ20: 34.05833333 | BR20: 9.06 | BS20: 0.9258417464 | BT20: 44.48333333 | BU20: 33.9 | BV20: 23.28333333 | BX20: 1996 | BY20: 1 | BZ20: 1.98 | CA20: 18.3 | CI20: 1966 | CJ20: 0.1166666667 | CK20: 1967-01-01 | CL20: -0.7033333333 | CM20: 1967-01-01 | CN20: 0.8461335166 | CO20: 34.55
A21: '459376' | B21: 1925 | C21: 5 | D21: 0.41 | E21: 74.5 | F21: 56.2 | G21: 37.9 | L21: 1925-05-01 | AR21: 1941-01-01 | AS21: 4.86 | AT21: 0.840743868 | AU21: 34.73333333 | AV21: 26.36666667 | AW21: 17.93333333 | AX21: 5.35 | AY21: 2.148902596 | AZ21: 64.83333333 | BA21: 49.8 | BB21: 34.66666667 | BC21: 4.7 | BD21: 2.119048897 | BE21: 82.2 | BF21: 66.13333333 | BG21: 50.06666667 | BH21: 3.44 | BI21: 1.033180778 | BJ21: 58.13333333 | BK21: 45.86666667 | BL21: 33.5 | BM21: 19.99 | BN21: 1.446890645 | BO21: 59.5 | BP21: 46.71666667 | BQ21: 33.875 | BR21: 9.71 | BS21: 0.9922652712 | BT21: 43.88333333 | BU21: 33.61666667 | BV21: 23.28333333 | BX21: 1997 | BY21: 1 | BZ21: 2.32 | CA21: 19.8 | CI21: 1967 | CJ21: 0.2833333333 | CK21: 1968-01-01 | CL21: -0.4583333333 | CM21: 1968-01-01 | CN21: 1.060732597 | CO21: 32
A22: '459376' | B22: 1925 | C22: 6 | D22: 0.76 | E22: 80 | F22: 61.8 | G22: 43.5 | L22: 1925-06-01 | AR22: 1942-01-01 | AS22: 5.88 | AT22: 1.017196285 | AU22: 32.46666667 | AV22: 23.63333333 | AW22: 14.76666667 | AX22: 4.73 | AY22: 1.899870894 | AZ22: 60.26666667 | BA22: 46.36666667 | BB22: 32.36666667 | BC22: 2.12 | BD22: 0.955826311 | BE22: 82.43333333 | BF22: 65.4 | BG22: 48.3 | BH22: 3.52 | BI22: 1.057208238 | BJ22: 61.36666667 | BK22: 46.2 | BL22: 30.96666667 | BM22: 14.98 | BN22: 1.084263225 | BO22: 59.48333333 | BP22: 45.89166667 | BQ22: 32.225 | BR22: 8.13 | BS22: 0.8308050108 | BT22: 42.18333333 | BU22: 31.83333333 | BV22: 21.41666667 | BX22: 1998 | BY22: 1 | BZ22: 4.19 | CA22: 22.7 | CI22: 1968 | CJ22: 0.2333333333 | CK22: 1969-01-01 | CL22: -0.7933333333 | CM22: 1969-01-01 | CN22: 1.479711754 | CO22: 25.5
A23: '459376' | B23: 1925 | C23: 7 | D23: 0.16 | E23: 91.3 | F23: 71.1 | G23: 50.9 | L23: 1925-07-01 | AR23: 1943-01-01 | AS23: 5.34 | AT23: 0.9237802994 | AU23: 29.23333333 | AV23: 19.26666667 | AW23: 9.266666667 | AX23: 2.53 | AY23: 1.016210013 | AZ23: 58.23333333 | BA23: 44 | BB23: 29.73333333 | BC23: 2.18 | BD23: 0.982877999 | BE23: 80.56666667 | BF23: 64 | BG23: 47.4 | BH23: 2.76 | BI23: 0.8289473684 | BJ23: 62.2 | BK23: 48.03333333 | BL23: 33.83333333 | BM23: 13.57 | BN23: 0.9822064057 | BO23: 57.36666667 | BP23: 43.35833333 | BQ23: 29.30833333 | BR23: 9.67 | BS23: 0.9881776697 | BT23: 39.1 | BU23: 27.73333333 | BV23: 16.33333333 | BX23: 1999 | BY23: 1 | BZ23: 1.93 | CA23: 26.3 | CI23: 1969 | CJ23: -0.4 | CK23: 1970-01-01 | CL23: 0.8366666667 | CM23: 1970-01-01 | CN23: 0.7562062829 | CO23: 30.36666667
A24: '459376' | B24: 1925 | C24: 8 | D24: 0.03 | E24: 84.6 | F24: 65.4 | G24: 46.1 | L24: 1925-08-01 | AR24: 1944-01-01 | AS24: 2.6 | AT24: 0.4497806701 | AU24: 35.36666667 | AV24: 23.8 | AW24: 12.2 | AX24: 2.51 | AY24: 1.008176732 | AZ24: 60.83333333 | BA24: 46.23333333 | BB24: 31.53333333 | BC24: 2.25 | BD24: 1.014438302 | BE24: 82.16666667 | BF24: 65.33333333 | BG24: 48.46666667 | BH24: 3.02 | BI24: 0.9070366133 | BJ24: 63.56666667 | BK24: 49 | BL24: 34.4 | BM24: 10.6 | BN24: 0.7672356596 | BO24: 59.94166667 | BP24: 45.825 | BQ24: 31.65833333 | BR24: 5.76 | BS24: 0.5886146202 | BT24: 43.28333333 | BU24: 31.68333333 | BV24: 20.05 | BX24: 2000 | BY24: 1 | BZ24: 1.82 | CA24: 21.3 | CI24: 1970 | CJ24: 0.8333333333 | CK24: 1971-01-01 | CL24: -1.413333333 | CM24: 1971-01-01 | CN24: 1.290660183 | CO24: 28
A25: '459376' | B25: 1925 | C25: 9 | D25: 0.31 | E25: 74.9 | F25: 57.4 | G25: 39.9 | L25: 1925-09-01 | AR25: 1945-01-01 | AS25: 4.53 | AT25: 0.7836563214 | AU25: 33.1 | AV25: 24.36666667 | AW25: 15.6 | AX25: 2.15 | AY25: 0.863577679 | AZ25: 58.53333333 | BA25: 45 | BB25: 31.43333333 | BC25: 0.9 | BD25: 0.4057753207 | BE25: 83.33333333 | BF25: 65.83333333 | BG25: 48.23333333 | BH25: 3.27 | BI25: 0.9821224256 | BJ25: 59.26666667 | BK25: 44.96666667 | BL25: 30.6 | BM25: 10.44 | BN25: 0.755654744 | BO25: 59.125 | BP25: 45.74166667 | BQ25: 32.31666667 | BR25: 7.32 | BS25: 0.7480310799 | BT25: 43 | BU25: 32.61666667 | BV25: 22.21666667 | BX25: 2001 | BY25: 1 | BZ25: 0.49 | CA25: 25.1 | CI25: 1971 | CJ25: 0.95 | CK25: 1972-01-01 | CL25: -1.541666667 | CM25: 1972-01-01 | CN25: 1.504237363 | CO25: 27.13333333
A26: '459376' | B26: 1925 | C26: 10 | D26: 1.3 | E26: 62.7 | F26: 44.8 | G26: 26.8 | L26: 1925-10-01 | AR26: 1946-01-01 | AS26: 7.82 | AT26: 1.352801862 | AU26: 32.56666667 | AV26: 22.73333333 | AW26: 12.86666667 | AX26: 2.04 | AY26: 0.8193946349 | AZ26: 61.66666667 | BA26: 47.16666667 | BB26: 32.6 | BC26: 2.68 | BD26: 1.208308733 | BE26: 80.43333333 | BF26: 63.6 | BG26: 46.7 | BH26: 4.79 | BI26: 1.438644165 | BJ26: 56.06666667 | BK26: 42.5 | BL26: 28.9 | BM26: 16.48 | BN26: 1.192834308 | BO26: 58.50833333 | BP26: 44.625 | BQ26: 30.675 | BR26: 11.67 | BS26: 1.192557746 | BT26: 41.71666667 | BU26: 30.45 | BV26: 19.11666667 | BX26: 2002 | BY26: 1 | BZ26: 1.24 | CA26: 24.6 | CI26: 1972 | CJ26: -0.8333333333 | CK26: 1973-01-01 | CL26: -0.2033333333 | CM26: 1973-01-01 | CN26: 0.8982504361 | CO26: 30.61666667
A27: '459376' | B27: 1925 | C27: 11 | D27: 1.26 | E27: 42.7 | F27: 32.8 | G27: 22.8 | L27: 1925-11-01 | AR27: 1947-01-01 | AS27: 4.36 | AT27: 0.7542475853 | AU27: 31.73333333 | AV27: 21.03333333 | AW27: 10.23333333 | AX27: 0.55 | AY27: 0.2209152202 | AZ27: 65.56666667 | BA27: 49.4 | BB27: 33.16666667 | BC27: 3.27 | BD27: 1.474316999 | BE27: 80.26666667 | BF27: 63.4 | BG27: 46.53333333 | BH27: 3 | BI27: 0.9010297483 | BJ27: 59.73333333 | BK27: 46.5 | BL27: 33.23333333 | BM27: 12.3 | BN27: 0.890282888 | BO27: 58.55833333 | BP27: 44.13333333 | BQ27: 29.65833333 | BR27: 8.56 | BS27: 0.8747467273 | BT27: 40.78333333 | BU27: 28.9 | BV27: 16.95 | BX27: 2003 | BY27: 1 | BZ27: 2.85 | CA27: 25.7 | CI27: 1973 | CJ27: 1.266666667 | CK27: 1974-01-01 | CL27: -1.201666667 | CM27: 1974-01-01 | CN27: 1.571682788 | CO27: 29.98333333
A28: '459376' | B28: 1925 | C28: 12 | D28: 1.05 | E28: 35.8 | F28: 30 | G28: 24.1 | L28: 1925-12-01 | AR28: 1948-01-01 | AS28: 8.36 | AT28: 1.446217847 | AU28: 33.93333333 | AV28: 22.2 | AW28: 10.43333333 | AX28: 6.55 | AY28: 2.630899441 | AZ28: 56.5 | BA28: 42.16666667 | BB28: 27.8 | BC28: 5.92 | BD28: 2.669099887 | BE28: 80.4 | BF28: 63.56666667 | BG28: 46.7 | BH28: 4.04 | BI28: 1.213386728 | BJ28: 58.7 | BK28: 44.03333333 | BL28: 29.33333333 | BM28: 24.49 | BN28: 1.772603896 | BO28: 57.575 | BP28: 43.51666667 | BQ28: 29.43333333 | BR28: 11.27 | BS28: 1.151681731 | BT28: 42.16666667 | BU28: 30.05 | BV28: 17.91666667 | BX28: 2004 | BY28: 1 | BZ28: 0.72 | CA28: 22.4 | CI28: 1974 | CJ28: 0.7 | CK28: 1975-01-01 | CL28: -0.3083333333 | CM28: 1975-01-01 | CN28: 1.062776398 | CO28: 29.76666667
A29: '459376' | B29: 1926 | C29: 1 | D29: 1.14 | E29: 29 | F29: 20.7 | G29: 12.4 | L29: 1926-01-01 | M29: =SUM($D28:$D30) -> 3.96 | N29: =M29/M$1052 -> 0.6850505591 | O29: =AVERAGE($E28:$E30) -> 35.9 | P29: =AVERAGE($F28:$F30) -> 27.93333333 | Q29: =AVERAGE($G28:$G30) -> 19.93333333 | R29: =SUM($D31:$D33) -> 0.59 | S29: =R29/R$1052 -> 0.2369817817 | T29: =AVERAGE($E31:$E33) -> 67.1 | U29: =AVERAGE($F31:$F33) -> 49 | V29: =AVERAGE($G31:$G33) -> 30.83333333 | W29: =SUM($D34:$D36) -> 0.61 | X29: =W29/W$1052 -> 0.2750254951 | Y29: =AVERAGE($E34:$E36) -> 87.2 | Z29: =AVERAGE($F34:$F36) -> 67.63333333 | AA29: =AVERAGE($G34:$G36) -> 47.96666667 | AB29: =SUM($D37:$D39) -> 3.78 | AC29: =AB29/AB$1052 -> 1.135297483 | AD29: =AVERAGE($E37:$E39) -> 58.53333333 | AE29: =AVERAGE($F37:$F39) -> 44.93333333 | AF29: =AVERAGE($G37:$G39) -> 31.3 | AG29: =SUM(D26:D37) -> 8.79 | AH29: =AG29/AG$1052 -> 0.6362265517 | AI29: =AVERAGE(E26:E37) -> 61.975 | AJ29: =AVERAGE(F26:F37) -> 46.89166667 | AK29: =AVERAGE(G26:G37) -> 31.73333333 | AL29: =SUM(D26:D31) -> 6.59 | AM29: =AL29/AL$1052 -> 0.673432352 | AN29: =AVERAGE(E26:E31) -> 45.6 | AO29: =AVERAGE(F26:F31) -> 34.1 | AP29: =AVERAGE(G26:G31) -> 22.53333333 | AR29: 1949-01-01 | AS29: 7.16 | AT29: 1.238626769 | AU29: 23.93333333 | AV29: 11.9 | AW29: -0.2 | AX29: 1.4 | AY29: 0.5623296514 | AZ29: 63.4 | BA29: 47.46666667 | BB29: 31.53333333 | BC29: 0.68 | BD29: 0.3065857979 | BE29: 82.36666667 | BF29: 64.2 | BG29: 45.93333333 | BH29: 4.32 | BI29: 1.297482838 | BJ29: 62 | BK29: 46.86666667 | BL29: 31.66666667 | BM29: 12.59 | BN29: 0.9112732975 | BO29: 57.36666667 | BP29: 42.1 | BQ29: 26.78333333 | BR29: 10.86 | BS29: 1.109783815 | BT29: 37.01666667 | BU29: 24.56666667 | BV29: 12.06666667 | BX29: 2005 | BY29: 1 | BZ29: 1.66 | CA29: 21.3 | CI29: 1975 | CJ29: 1.7 | CK29: 1976-01-01 | CL29: -1.488333333 | CM29: 1976-01-01 | CN29: 0.8011698997 | CO29: 30.25
A30: '459376' | B30: 1926 | C30: 2 | D30: 1.77 | E30: 42.9 | F30: 33.1 | G30: 23.3 | L30: 1926-02-01 | AR30: 1950-01-01 | AS30: 5.62 | AT30: 0.9722182178 | AU30: 27.06666667 | AV30: 15.46666667 | AW30: 3.866666667 | AX30: 3.48 | AY30: 1.397790848 | AZ30: 56.5 | BA30: 43.5 | BB30: 30.46666667 | BC30: 2.42 | BD30: 1.091084751 | BE30: 82.5 | BF30: 65.23333333 | BG30: 47.9 | BH30: 6.8 | BI30: 2.042334096 | BJ30: 58.16666667 | BK30: 45.16666667 | BL30: 32.13333333 | BM30: 15.67 | BN30: 1.134205923 | BO30: 57.18333333 | BP30: 42.81666667 | BQ30: 28.4 | BR30: 11.11 | BS30: 1.135331325 | BT30: 39.16666667 | BU30: 27.15 | BV30: 15.1 | BX30: 2006 | BY30: 1 | BZ30: 3.98 | CA30: 27.4 | CI30: 1976 | CJ30: -0.2333333333 | CK30: 1977-01-01 | CL30: 1.176666667 | CM30: 1977-01-01 | CN30: 0.2237961837 | CO30: 31.81666667
A31: '459376' | B31: 1926 | C31: 3 | D31: 0.07 | E31: 60.5 | F31: 43.2 | G31: 25.8 | L31: 1926-03-01 | AR31: 1951-01-01 | AS31: 7.82 | AT31: 1.352801862 | AU31: 32.7 | AV31: 23.7 | AW31: 14.66666667 | AX31: 3.68 | AY31: 1.478123655 | AZ31: 58.9 | BA31: 43.63333333 | BB31: 28.26666667 | BC31: 4.18 | BD31: 1.884600934 | BE31: 83.26666667 | BF31: 65.16666667 | BG31: 47 | BH31: 4.59 | BI31: 1.378575515 | BJ31: 58.56666667 | BK31: 45.43333333 | BL31: 32.26666667 | BM31: 22.58 | BN31: 1.634356716 | BO31: 58.03333333 | BP31: 44.36666667 | BQ31: 30.65 | BR31: 16.3 | BS31: 1.665697623 | BT31: 39.25 | BU31: 29.46666667 | BV31: 19.65 | BX31: 2007 | BY31: 1 | BZ31: 1.21 | CA31: 16.3 | CI31: 1977 | CJ31: -0.9833333333 | CK31: 1978-01-01 | CL31: 0.185 | CM31: 1978-01-01 | CN31: 1.124090421 | CO31: 30.65
A32: '459376' | B32: 1926 | C32: 4 | D32: 0.31 | E32: 69.7 | F32: 50.8 | G32: 31.8 | L32: 1926-04-01 | AR32: 1952-01-01 | AS32: 6.54 | AT32: 1.131371378 | AU32: 28.03333333 | AV32: 17.5 | AW32: 6.9 | AX32: 1.24 | AY32: 0.4980634055 | AZ32: 61.13333333 | BA32: 46.13333333 | BB32: 31.06666667 | BC32: 1.29 | BD32: 0.581611293 | BE32: 82.76666667 | BF32: 64.83333333 | BG32: 46.83333333 | BH32: 0.93 | BI32: 0.279319222 | BJ32: 64.73333333 | BK32: 47.66666667 | BL32: 30.56666667 | BM32: 14.16 | BN32: 1.024911032 | BO32: 57.94166667 | BP32: 43.65 | BQ32: 29.3 | BR32: 10.96 | BS32: 1.120002819 | BT32: 38.31666667 | BU32: 27.43333333 | BV32: 16.48333333 | BX32: 2008 | BY32: 1 | BZ32: 2.65 | CA32: 15 | CI32: 1978 | CJ32: 0.2333333333 | CK32: 1979-01-01 | CL32: -0.335 | CM32: 1979-01-01 | CN32: 0.3995630495 | CO32: 26.68333333
A33: '459376' | B33: 1926 | C33: 5 | D33: 0.21 | E33: 71.1 | F33: 53 | G33: 34.9 | L33: 1926-05-01 | AR33: 1953-01-01 | AS33: 8.13 | AT33: 1.406429557 | AU33: 37.2 | AV33: 27.96666667 | AW33: 18.73333333 | AX33: 2.9 | AY33: 1.164825706 | AZ33: 59.9 | BA33: 45.86666667 | BB33: 31.76666667 | BC33: 3.25 | BD33: 1.465299769 | BE33: 79.53333333 | BF33: 62.73333333 | BG33: 45.9 | BH33: 1.85 | BI33: 0.5556350114 | BJ33: 62.93333333 | BK33: 47.33333333 | BL33: 31.63333333 | BM33: 14.69 | BN33: 1.063272815 | BO33: 60.06666667 | BP33: 45.85 | BQ33: 31.59166667 | BR33: 8.68 | BS33: 0.8870095319 | BT33: 46.2 | BU33: 34.16666667 | BV33: 22.1 | BX33: 2009 | BY33: 1 | BZ33: 2.08 | CA33: 17.9 | CI33: 1979 | CJ33: 0.2166666667 | CK33: 1980-01-01 | CL33: 0.57 | CM33: 1980-01-01 | CN33: 1.187448244 | CO33: 30.5
A34: '459376' | B34: 1926 | C34: 6 | D34: 0.23 | E34: 85 | F34: 64.9 | G34: 44.7 | L34: 1926-06-01 | AR34: 1954-01-01 | AS34: 6.27 | AT34: 1.084663385 | AU34: 33.63333333 | AV34: 23.93333333 | AW34: 14.2 | AX34: 1.42 | AY34: 0.5703629321 | AZ34: 58.43333333 | BA34: 43 | BB34: 27.5 | BC34: 2.46 | BD34: 1.10911921 | BE34: 77.16666667 | BF34: 60.7 | BG34: 44.13333333 | BH34: 3.06 | BI34: 0.9190503432 | BJ34: 59.56666667 | BK34: 46.06666667 | BL34: 32.5 | BM34: 12.96 | BN34: 0.9380541649 | BO34: 57.55 | BP34: 43.51666667 | BQ34: 29.40833333 | BR34: 8.47 | BS34: 0.8655496238 | BT34: 43.25 | BU34: 31.31666667 | BV34: 19.31666667 | BX34: 2010 | BY34: 1 | BZ34: 3.06 | CA34: 28.7 | CI34: 1980 | CJ34: -0.06666666667 | CK34: 1981-01-01 | CL34: 0.7766666667 | CM34: 1981-01-01 | CN34: 0.8972285357 | CO34: 34.23333333
A35: '459376' | B35: 1926 | C35: 7 | D35: 0.02 | E35: 91.3 | F35: 71.5 | G35: 51.6 | L35: 1926-07-01 | AR35: 1955-01-01 | AS35: 5.81 | AT35: 1.005086805 | AU35: 30.4 | AV35: 20.93333333 | AW35: 11.43333333 | AX35: 2.25 | AY35: 0.9037440826 | AZ35: 52.5 | BA35: 39.26666667 | BB35: 25.93333333 | BC35: 1.51 | BD35: 0.6808008158 | BE35: 80.96666667 | BF35: 63.56666667 | BG35: 46.16666667 | BH35: 4.3 | BI35: 1.291475973 | BJ35: 55.3 | BK35: 41.16666667 | BL35: 27.03333333 | BM35: 11.69 | BN35: 0.8461306472 | BO35: 56.275 | BP35: 42.61666667 | BQ35: 28.91666667 | BR35: 8.94 | BS35: 0.9135789418 | BT35: 39.68333333 | BU35: 28.66666667 | BV35: 17.6 | BX35: 1981 | BY35: 2 | BZ35: 2.41 | CA35: 29.5 | CB35: =AVERAGE(BZ35:BZ64) -> 1.314 | CC35: =AVERAGE(CA35:CA64) -> 27.95 | CI35: 1981 | CJ35: 0.4666666667 | CK35: 1982-01-01 | CL35: 0.3966666667 | CM35: 1982-01-01 | CN35: 1.341755202 | CO35: 29.91666667
A36: '459376' | B36: 1926 | C36: 8 | D36: 0.36 | E36: 85.3 | F36: 66.5 | G36: 47.6 | L36: 1926-08-01 | AR36: 1956-01-01 | AS36: 8.77 | AT36: 1.517144799 | AU36: 25.86666667 | AV36: 16.3 | AW36: 6.666666667 | AX36: 1.93 | AY36: 0.7752115909 | AZ36: 59.23333333 | BA36: 43.9 | BB36: 28.53333333 | BC36: 4.26 | BD36: 1.920669851 | BE36: 81.73333333 | BF36: 64.36666667 | BG36: 46.93333333 | BH36: 3.31 | BI36: 0.9941361556 | BJ36: 56.5 | BK36: 42.76666667 | BL36: 29.03333333 | BM36: 19.55 | BN36: 1.415043127 | BO36: 55.40833333 | BP36: 41.35833333 | BQ36: 27.26666667 | BR36: 13.74 | BS36: 1.404091125 | BT36: 34.63333333 | BU36: 23.95 | BV36: 13.21666667 | BX36: 1982 | BY36: 2 | BZ36: 1.42 | CA36: 25 | CI36: 1982 | CJ36: -1.7 | CK36: 1983-01-01 | CL36: 0.6983333333 | CM36: 1983-01-01 | CN36: 1.47051465 | CO36: 31.68333333
A37: '459376' | B37: 1926 | C37: 9 | D37: 1.07 | E37: 67.7 | F37: 51.4 | G37: 35 | L37: 1926-09-01 | AR37: 1957-01-01 | AS37: 4.4 | AT37: 0.7611672879 | AU37: 26.2 | AV37: 16.2 | AW37: 6.133333333 | AX37: 3.84 | AY37: 1.542389901 | AZ37: 61.6 | BA37: 47.3 | BB37: 32.9 | BC37: 1.89 | BD37: 0.8521281735 | BE37: 79.3 | BF37: 62.46666667 | BG37: 45.56666667 | BH37: 1.67 | BI37: 0.5015732265 | BJ37: 60.36666667 | BK37: 46 | BL37: 31.6 | BM37: 12.96 | BN37: 0.9380541649 | BO37: 56.375 | BP37: 42.5 | BQ37: 28.56666667 | BR37: 8.91 | BS37: 0.9105132407 | BT37: 36.9 | BU37: 25.91666667 | BV37: 14.88333333 | BX37: 1983 | BY37: 2 | BZ37: 2.26 | CA37: 30.7 | CI37: 1983 | CJ37: 0.1166666667 | CK37: 1984-01-01 | CL37: 1.358333333 | CM37: 1984-01-01 | CN37: 1.090367708 | CO37: 29.93333333
A38: '459376' | B38: 1926 | C38: 10 | D38: 0.75 | E38: 61.8 | F38: 46.8 | G38: 31.8 | L38: 1926-10-01 | AR38: 1958-01-01 | AS38: 7.59 | AT38: 1.313013572 | AU38: 35.06666667 | AV38: 27.8 | AW38: 20.46666667 | AX38: 3.77 | AY38: 1.514273418 | AZ38: 62.23333333 | BA38: 47.63333333 | BB38: 32.96666667 | BC38: 3.54 | BD38: 1.596049595 | BE38: 86.73333333 | BF38: 68.73333333 | BG38: 50.66666667 | BH38: 5.65 | BI38: 1.696939359 | BJ38: 56.5 | BK38: 42.6 | BL38: 28.63333333 | BM38: 16.8 | BN38: 1.21599614 | BO38: 60.39166667 | BP38: 47.13333333 | BQ38: 33.81666667 | BR38: 11.32 | BS38: 1.156791233 | BT38: 42.56666667 | BU38: 33.08333333 | BV38: 23.55 | BX38: 1984 | BY38: 2 | BZ38: 0.92 | CA38: 28.6 | CI38: 1984 | CJ38: 0.06666666667 | CK38: 1985-01-01 | CL38: 0.815 | CM38: 1985-01-01 | CN38: 0.7010236623 | CO38: 25.8
A39: '459376' | B39: 1926 | C39: 11 | D39: 1.96 | E39: 46.1 | F39: 36.6 | G39: 27.1 | L39: 1926-11-01 | AR39: 1959-01-01 | AS39: 8.26 | AT39: 1.428918591 | AU39: 31.1 | AV39: 21.56666667 | AW39: 12.03333333 | AX39: 1.06 | AY39: 0.4257638789 | AZ39: 59.3 | BA39: 44.16666667 | BB39: 29 | BC39: 1.01 | BD39: 0.4553700821 | BE39: 80.86666667 | BF39: 62.73333333 | BG39: 44.56666667 | BH39: 6.54 | BI39: 1.964244851 | BJ39: 56 | BK39: 42.66666667 | BL39: 29.33333333 | BM39: 18.45 | BN39: 1.335424332 | BO39: 56.70833333 | BP39: 42.65 | BQ39: 28.55833333 | BR39: 14.29 | BS39: 1.460295646 | BT39: 39.61666667 | BU39: 28.53333333 | BV39: 17.41666667 | BX39: 1985 | BY39: 2 | BZ39: 1 | CA39: 18.7 | CI39: 1985 | CJ39: -0.01666666667 | CK39: 1986-01-01 | CL39: 0.805 | CM39: 1986-01-01 | CN39: 0.8236517082 | CO39: 28.45
A40: '459376' | B40: 1926 | C40: 12 | D40: 1.53 | E40: 31.4 | F40: 22 | G40: 12.5 | L40: 1926-12-01 | AR40: 1960-01-01 | AS40: 5.06 | AT40: 0.8753423811 | AU40: 31.63333333 | AV40: 22.2 | AW40: 12.7 | AX40: 3.18 | AY40: 1.277291637 | AZ40: 57.46666667 | BA40: 43.2 | BB40: 28.86666667 | BC40: 0.65 | BD40: 0.2930599538 | BE40: 83.16666667 | BF40: 64.53333333 | BG40: 45.86666667 | BH40: 2.64 | BI40: 0.7929061785 | BJ40: 60 | BK40: 43.86666667 | BL40: 27.7 | BM40: 12.85 | BN40: 0.9300922854 | BO40: 57.70833333 | BP40: 43.30833333 | BQ40: 28.86666667 | BR40: 9.67 | BS40: 0.9881776697 | BT40: 40.13333333 | BU40: 28.96666667 | BV40: 17.76666667 | BX40: 1986 | BY40: 2 | BZ40: 2.04 | CA40: 26.5 | CI40: 1986 | CJ40: -0.03333333333 | CK40: 1987-01-01 | CL40: 1.711666667 | CM40: 1987-01-01 | CN40: 0.8083232024 | CO40: 32.76666667
A41: '459376' | B41: 1927 | C41: 1 | D41: 1.12 | E41: 27.7 | F41: 17.8 | G41: 7.8 | L41: 1927-01-01 | M41: =SUM($D40:$D42) -> 4.22 | N41: =M41/M$1052 -> 0.7300286262 | O41: =AVERAGE($E40:$E42) -> 32.2 | P41: =AVERAGE($F40:$F42) -> 21.66666667 | Q41: =AVERAGE($G40:$G42) -> 11.03333333 | R41: =SUM($D43:$D45) -> 2.09 | S41: =R41/R$1052 -> 0.8394778368 | T41: =AVERAGE($E43:$E45) -> 58.3 | U41: =AVERAGE($F43:$F45) -> 43.4 | V41: =AVERAGE($G43:$G45) -> 28.4 | W41: =SUM($D46:$D48) -> 1.87 | X41: =W41/W$1052 -> 0.8431109441 | Y41: =AVERAGE($E46:$E48) -> 84 | Z41: =AVERAGE($F46:$F48) -> 65.5 | AA41: =AVERAGE($G46:$G48) -> 46.96666667 | AB41: =SUM($D49:$D51) -> 5.52 | AC41: =AB41/AB$1052 -> 1.657894737 | AD41: =AVERAGE($E49:$E51) -> 55.56666667 | AE41: =AVERAGE($F49:$F51) -> 42.73333333 | AF41: =AVERAGE($G49:$G51) -> 29.83333333 | AG41: =SUM(D38:D49) -> 11.97 | AH41: =AG41/AG$1052 -> 0.8663972495 | AI41: =AVERAGE(E38:E49) -> 58.31666667 | AJ41: =AVERAGE(F38:F49) -> 44.075 | AK41: =AVERAGE(G38:G49) -> 29.775 | AL41: =SUM(D38:D43) -> 7.56 | AM41: =AL41/AL$1052 -> 0.772556689 | AN41: =AVERAGE(E38:E43) -> 42.13333333 | AO41: =AVERAGE(F38:F43) -> 30.56666667 | AP41: =AVERAGE(G38:G43) -> 18.93333333 | AR41: 1961-01-01 | AS41: 4.96 | AT41: 0.8580431246 | AU41: 31.3 | AV41: 22.83333333 | AW41: 14.33333333 | AX41: 4.86 | AY41: 1.952087218 | AZ41: 58.8 | BA41: 45.2 | BB41: 31.53333333 | BC41: 1.91 | BD41: 0.8611454028 | BE41: 87.7 | BF41: 67.76666667 | BG41: 47.73333333 | BH41: 1.83 | BI41: 0.5496281465 | BJ41: 55.53333333 | BK41: 40.7 | BL41: 25.83333333 | BM41: 14.55 | BN41: 1.053139514 | BO41: 59.06666667 | BP41: 44.775 | BQ41: 30.425 | BR41: 9.68 | BS41: 0.9891995701 | BT41: 40.86666667 | BU41: 30.05 | BV41: 19.18333333 | BX41: 1987 | BY41: 2 | BZ41: 1.57 | CA41: 31.4 | CI41: 1987 | CJ41: -0.8 | CK41: 1988-01-01 | CL41: 1.281666667 | CM41: 1988-01-01 | CN41: 0.7664252867 | CO41: 31.36666667
A42: '459376' | B42: 1927 | C42: 2 | D42: 1.57 | E42: 37.5 | F42: 25.2 | G42: 12.8 | L42: 1927-02-01 | AR42: 1962-01-01 | AS42: 4.21 | AT42: 0.7282987005 | AU42: 30.4 | AV42: 21.3 | AW42: 12.16666667 | AX42: 2.97 | AY42: 1.192942189 | AZ42: 59.1 | BA42: 44.5 | BB42: 29.83333333 | BC42: 1.88 | BD42: 0.8476195588 | BE42: 80.56666667 | BF42: 62.36666667 | BG42: 44.16666667 | BH42: 4.11 | BI42: 1.234410755 | BJ42: 60.93333333 | BK42: 46 | BL42: 31 | BM42: 10.59 | BN42: 0.7665118523 | BO42: 56.93333333 | BP42: 42.49166667 | BQ42: 28.00833333 | BR42: 6.27 | BS42: 0.6407315397 | BT42: 38.76666667 | BU42: 27.6 | BV42: 16.4 | BX42: 1988 | BY42: 2 | BZ42: 0.19 | CA42: 26.8 | CI42: 1988 | CJ42: 1.25 | CK42: 1989-01-01 | CL42: -0.5583333333 | CM42: 1989-01-01 | CN42: 0.8665715242 | CO42: 30.2
A43: '459376' | B43: 1927 | C43: 3 | D43: 0.63 | E43: 48.3 | F43: 35 | G43: 21.6 | L43: 1927-03-01 | AR43: 1963-01-01 | AS43: 2.27 | AT43: 0.3926931235 | AU43: 36.16666667 | AV43: 25.6 | AW43: 14.96666667 | AX43: 4.13 | AY43: 1.658872472 | AZ43: 59.96666667 | BA43: 45.53333333 | BB43: 31.1 | BC43: 2.3 | BD43: 1.036981375 | BE43: 80.9 | BF43: 64 | BG43: 47.03333333 | BH43: 3.41 | BI43: 1.024170481 | BJ43: 61.13333333 | BK43: 47.13333333 | BL43: 33.1 | BM43: 13.98 | BN43: 1.011882502 | BO43: 59.66666667 | BP43: 45.6 | BQ43: 31.49166667 | BR43: 7.38 | BS43: 0.7541624822 | BT43: 44.2 | BU43: 32.66666667 | BV43: 21.08333333 | BX43: 1989 | BY43: 2 | BZ43: 1.67 | CA43: 20.3 | CI43: 1989 | CJ43: 0.4 | CK43: 1990-01-01 | CL43: -0.4 | CM43: 1990-01-01 | CN43: 0.7899289955 | CO43: 32.85
A44: '459376' | B44: 1927 | C44: 4 | D44: 0.41 | E44: 60.1 | F44: 44.3 | G44: 28.4 | L44: 1927-04-01 | AR44: 1964-01-01 | AS44: 6.31 | AT44: 1.091583088 | AU44: 30.93333333 | AV44: 21.7 | AW44: 12.46666667 | AX44: 0.59 | AY44: 0.2369817817 | AZ44: 58.03333333 | BA44: 43.36666667 | BB44: 28.7 | BC44: 2.59 | BD44: 1.167731201 | BE44: 79.43333333 | BF44: 62.16666667 | BG44: 44.86666667 | BH44: 2.85 | BI44: 0.8559782609 | BJ44: 58.8 | BK44: 43.76666667 | BL44: 28.66666667 | BM44: 12.12 | BN44: 0.8772543579 | BO44: 56.725 | BP44: 43.01666667 | BQ44: 29.28333333 | BR44: 8.9 | BS44: 0.9094913403 | BT44: 40.2 | BU44: 29.71666667 | BV44: 19.21666667 | BX44: 1990 | BY44: 2 | BZ44: 0.54 | CA44: 23.3 | CI44: 1990 | CJ44: -0.05 | CK44: 1991-01-01 | CL44: -1.426666667 | CM44: 1991-01-01 | CN44: 0.8011698997 | CO44: 31.26666667
A45: '459376' | B45: 1927 | C45: 5 | D45: 1.05 | E45: 66.5 | F45: 50.9 | G45: 35.2 | L45: 1927-05-01 | AR45: 1965-01-01 | AS45: 6.81 | AT45: 1.178079371 | AU45: 30.83333333 | AV45: 21.26666667 | AW45: 11.7 | AX45: 2.13 | AY45: 0.8555443982 | AZ45: 59.5 | BA45: 44.46666667 | BB45: 29.4 | BC45: 2.92 | BD45: 1.316515485 | BE45: 82.9 | BF45: 65.46666667 | BG45: 47.96666667 | BH45: 1.89 | BI45: 0.5676487414 | BJ45: 60.53333333 | BK45: 45.33333333 | BL45: 30.1 | BM45: 14.47 | BN45: 1.047349056 | BO45: 57.90833333 | BP45: 43.63333333 | BQ45: 29.325 | BR45: 9.37 | BS45: 0.9575206582 | BT45: 40.6 | BU45: 29 | BV45: 17.38333333 | BX45: 1991 | BY45: 2 | BZ45: 0.42 | CA45: 36.8 | CI45: 1991 | CJ45: -0.6166666667 | CK45: 1992-01-01 | CL45: 0.3383333333 | CM45: 1992-01-01 | CN45: 0.8175203059 | CO45: 34.35
A46: '459376' | B46: 1927 | C46: 6 | D46: 0.69 | E46: 78 | F46: 61.3 | G46: 44.6 | L46: 1927-06-01 | AR46: 1966-01-01 | AS46: 4.86 | AT46: 0.840743868 | AU46: 29.96666667 | AV46: 22.13333333 | AW46: 14.23333333 | AX46: 1.3 | AY46: 0.5221632477 | AZ46: 60.96666667 | BA46: 45.06666667 | BB46: 29.06666667 | BC46: 1.87 | BD46: 0.8431109441 | BE46: 79.03333333 | BF46: 62.16666667 | BG46: 45.26666667 | BH46: 4.23 | BI46: 1.270451945 | BJ46: 61.5 | BK46: 47.9 | BL46: 34.23333333 | BM46: 10.94 | BN46: 0.7918451053 | BO46: 58.34166667 | BP46: 44.425 | BQ46: 30.44166667 | BR46: 7.48 | BS46: 0.764381486 | BT46: 41.16666667 | BU46: 30.5 | BV46: 19.76666667 | BX46: 1992 | BY46: 2 | BZ46: 1.66 | CA46: 34.8 | CI46: 1992 | CJ46: -0.4666666667 | CK46: 1993-01-01 | CL46: 0.565 | CM46: 1993-01-01 | CN46: 0.6437972409 | CO46: 28.93333333
A47: '459376' | B47: 1927 | C47: 7 | D47: 0.28 | E47: 87.1 | F47: 68.2 | G47: 49.2 | L47: 1927-07-01 | AR47: 1967-01-01 | AS47: 4.64 | AT47: 0.8026855036 | AU47: 37.86666667 | AV47: 29.46666667 | AW47: 21 | AX47: 3.06 | AY47: 1.229091952 | AZ47: 58 | BA47: 44.53333333 | BB47: 31.03333333 | BC47: 2.01 | BD47: 0.9062315496 | BE47: 86.4 | BF47: 66.53333333 | BG47: 46.66666667 | BH47: 2.78 | BI47: 0.8349542334 | BJ47: 62.43333333 | BK47: 47.76666667 | BL47: 33.06666667 | BM47: 12.84 | BN47: 0.9293684782 | BO47: 61.21666667 | BP47: 47.16666667 | BQ47: 33.08333333 | BR47: 8.28 | BS47: 0.8461335166 | BT47: 44.4 | BU47: 34.55 | BV47: 24.65 | BX47: 1993 | BY47: 2 | BZ47: 0.45 | CA47: 25.1 | CI47: 1993 | CJ47: -0.7333333333 | CK47: 1994-01-01 | CL47: 1.053333333 | CM47: 1994-01-01 | CN47: 0.6110964286 | CO47: 31.93333333
A48: '459376' | B48: 1927 | C48: 8 | D48: 0.9 | E48: 86.9 | F48: 67 | G48: 47.1 | L48: 1927-08-01 | AR48: 1968-01-01 | AS48: 7.22 | AT48: 1.249006322 | AU48: 33.5 | AV48: 24.23333333 | AW48: 14.9 | AX48: 1.6 | AY48: 0.6426624588 | AZ48: 60.06666667 | BA48: 45.03333333 | BB48: 29.96666667 | BC48: 1.18 | BD48: 0.5320165316 | BE48: 81.23333333 | BF48: 63.2 | BG48: 45.13333333 | BH48: 2.61 | BI48: 0.783895881 | BJ48: 57.5 | BK48: 44.26666667 | BL48: 31.03333333 | BM48: 12.8 | BN48: 0.9264732493 | BO48: 58.63333333 | BP48: 44.58333333 | BQ48: 30.49166667 | BR48: 10.38 | BS48: 1.060732597 | BT48: 42.6 | BU48: 32 | BV48: 21.33333333 | BX48: 1994 | BY48: 2 | BZ48: 1.65 | CA48: 26 | CI48: 1994 | CJ48: -1.033333333 | CK48: 1995-01-01 | CL48: -0.725 | CM48: 1995-01-01 | CN48: 1.79139137 | CO48: 29.65
A49: '459376' | B49: 1927 | C49: 9 | D49: 1.08 | E49: 68.4 | F49: 53.8 | G49: 39.2 | L49: 1927-09-01 | AR49: 1969-01-01 | AS49: 11.88 | AT49: 2.055151677 | AU49: 23.73333333 | AV49: 14.76666667 | AW49: 5.733333333 | AX49: 1.89 | AY49: 0.7591450294 | AZ49: 60.36666667 | BA49: 45.33333333 | BB49: 30.26666667 | BC49: 1.36 | BD49: 0.6131715957 | BE49: 83.63333333 | BF49: 65.2 | BG49: 46.66666667 | BH49: 1.17 | BI49: 0.3514016018 | BJ49: 59.46666667 | BK49: 44.73333333 | BL49: 29.96666667 | BM49: 18.02 | BN49: 1.304300621 | BO49: 56.29166667 | BP49: 42.4 | BQ49: 28.45833333 | BR49: 14.48 | BS49: 1.479711754 | BT49: 35.75 | BU49: 25.5 | BV49: 15.21666667 | BX49: 1995 | BY49: 2 | BZ49: 1.47 | CA49: 29.6 | CI49: 1995 | CJ49: 0.1833333333 | CK49: 1996-01-01 | CL49: 0.45 | CM49: 1996-01-01 | CN49: 1.350952305 | CO49: 29.71666667
A50: '459376' | B50: 1927 | C50: 10 | D50: 1.24 | E50: 58.6 | F50: 43.8 | G50: 28.9 | L50: 1927-10-01 | AR50: 1970-01-01 | AS50: 6.02 | AT50: 1.041415244 | AU50: 31.13333333 | AV50: 23.23333333 | AW50: 15.26666667 | AX50: 1.65 | AY50: 0.6627456606 | AZ50: 58.8 | BA50: 44.2 | BB50: 29.53333333 | BC50: 0.71 | BD50: 0.3201116419 | BE50: 86.36666667 | BF50: 67.33333333 | BG50: 48.2 | BH50: 3.51 | BI50: 1.054204805 | BJ50: 56.8 | BK50: 42.56666667 | BL50: 28.23333333 | BM50: 9.47 | BN50: 0.685445443 | BO50: 58.575 | BP50: 44.58333333 | BQ50: 30.51666667 | BR50: 7.4 | BS50: 0.7562062829 | BT50: 40.78333333 | BU50: 30.36666667 | BV50: 19.9 | BX50: 1996 | BY50: 2 | BZ50: 2.99 | CA50: 23.5 | CI50: 1996 | CJ50: 0.6166666667 | CK50: 1997-01-01 | CL50: 0.1483333333 | CM50: 1997-01-01 | CN50: 1.500149761 | CO50: 28.28333333
A51: '459376' | B51: 1927 | C51: 11 | D51: 3.2 | E51: 39.7 | F51: 30.6 | G51: 21.4 | L51: 1927-11-01 | AR51: 1971-01-01 | AS51: 8.37 | AT51: 1.447947773 | AU51: 30.2 | AV51: 21.36666667 | AW51: 12.46666667 | AX51: 1.74 | AY51: 0.6988954239 | AZ51: 57.63333333 | BA51: 43.6 | BB51: 29.53333333 | BC51: 2.64 | BD51: 1.190274274 | BE51: 84.06666667 | BF51: 65.03333333 | BG51: 45.93333333 | BH51: 3.72 | BI51: 1.117276888 | BJ51: 54.86666667 | BK51: 42.3 | BL51: 29.63333333 | BM51: 17.2 | BN51: 1.244948429 | BO51: 57.00833333 | BP51: 42.975 | BQ51: 28.875 | BR51: 12.63 | BS51: 1.290660183 | BT51: 38.63333333 | BU51: 28 | BV51: 17.3 | BX51: 1997 | BY51: 2 | BZ51: 0.75 | CA51: 25.2 | CI51: 1997 | CJ51: -1.283333333 | CK51: 1998-01-01 | CL51: 1.3 | CM51: 1998-01-01 | CN51: 1.222192857 | CO51: 33.43333333
A52: '459376' | B52: 1927 | C52: 12 | D52: 0.53 | E52: 25.3 | F52: 14.7 | G52: 4 | L52: 1927-12-01 | AR52: 1972-01-01 | AS52: 9.54 | AT52: 1.650349074 | AU52: 26.96666667 | AV52: 17.36666667 | AW52: 7.733333333 | AX52: 5.72 | AY52: 2.29751829 | AZ52: 58 | BA52: 44.43333333 | BB52: 30.76666667 | BC52: 3.08 | BD52: 1.38865332 | BE52: 81.2 | BF52: 63.43333333 | BG52: 45.66666667 | BH52: 2.14 | BI52: 0.6427345538 | BJ52: 57.43333333 | BK52: 43.66666667 | BL52: 29.86666667 | BM52: 21.2 | BN52: 1.534471319 | BO52: 55.16666667 | BP52: 41.84166667 | BQ52: 28.45833333 | BR52: 14.72 | BS52: 1.504237363 | BT52: 37.31666667 | BU52: 27.13333333 | BV52: 16.88333333 | BX52: 1998 | BY52: 2 | BZ52: 2.2 | CA52: 34.3 | CI52: 1998 | CJ52: 1.083333333 | CK52: 1999-01-01 | CL52: -0.61 | CM52: 1999-01-01 | CN52: 1.238543263 | CO52: 32.5
A53: '459376' | B53: 1928 | C53: 1 | D53: 1.22 | E53: 30.4 | F53: 22.3 | G53: 14.2 | L53: 1928-01-01 | M53: =SUM($D52:$D54) -> 2.01 | N53: =M53/M$1052 -> 0.3477150565 | O53: =AVERAGE($E52:$E54) -> 32.5 | P53: =AVERAGE($F52:$F54) -> 22.03333333 | Q53: =AVERAGE($G52:$G54) -> 11.5 | R53: =SUM($D55:$D57) -> 2.06 | S53: =R53/R$1052 -> 0.8274279157 | T53: =AVERAGE($E55:$E57) -> 62.63333333 | U53: =AVERAGE($F55:$F57) -> 46.8 | V53: =AVERAGE($G55:$G57) -> 30.93333333 | W53: =SUM($D58:$D60) -> 2.66 | X53: =W53/W$1052 -> 1.199291503 | Y53: =AVERAGE($E58:$E60) -> 84.16666667 | Z53: =AVERAGE($F58:$F60) -> 66.4 | AA53: =AVERAGE($G58:$G60) -> 48.6 | AB53: =SUM($D61:$D63) -> 1.29 | AC53: =AB53/AB$1052 -> 0.3874427918 | AD53: =AVERAGE($E61:$E63) -> 60.8 | AE53: =AVERAGE($F61:$F63) -> 45.26666667 | AF53: =AVERAGE($G61:$G63) -> 29.7 | AG53: =SUM(D50:D61) -> 11.17 | AH53: =AG53/AG$1052 -> 0.8084926715 | AI53: =AVERAGE(E50:E61) -> 59.45833333 | AJ53: =AVERAGE(F50:F61) -> 44.8 | AK53: =AVERAGE(G50:G61) -> 30.08333333 | AL53: =SUM(D50:D55) -> 6.84 | AM53: =AL53/AL$1052 -> 0.6989798615 | AN53: =AVERAGE(E50:E55) -> 41.38333333 | AO53: =AVERAGE(F50:F55) -> 29.86666667 | AP53: =AVERAGE(G50:G55) -> 18.28333333 | AR53: 1973-01-01 | AS53: 6.69 | AT53: 1.157320263 | AU53: 30.73333333 | AV53: 21.53333333 | AW53: 12.3 | AX53: 0.5 | AY53: 0.2008320184 | AZ53: 62.96666667 | BA53: 47.16666667 | BB53: 31.3 | BC53: 0.38 | BD53: 0.1713273576 | BE53: 84.2 | BF53: 65.43333333 | BG53: 46.63333333 | BH53: 5.4 | BI53: 1.621853547 | BJ53: 56.5 | BK53: 44 | BL53: 31.43333333 | BM53: 11.22 | BN53: 0.8121117076 | BO53: 59.5 | BP53: 45.08333333 | BQ53: 30.63333333 | BR53: 8.79 | BS53: 0.8982504361 | BT53: 41.45 | BU53: 30.61666667 | BV53: 19.76666667 | BX53: 1999 | BY53: 2 | BZ53: 2.73 | CA53: 28.9 | CI53: 1999 | CJ53: 0.5166666667 | CK53: 2000-01-01 | CL53: -1.408333333 | CM53: 2000-01-01 | CN53: 0.9626301602 | CO53: 33.3
A54: '459376' | B54: 1928 | C54: 2 | D54: 0.26 | E54: 41.8 | F54: 29.1 | G54: 16.3 | L54: 1928-02-01 | AR54: 1974-01-01 | AS54: 10.89 | AT54: 1.883889038 | AU54: 32.33333333 | AV54: 23.76666667 | AW54: 15.13333333 | AX54: 1.99 | AY54: 0.7993114331 | AZ54: 57.06666667 | BA54: 43.96666667 | BB54: 30.83333333 | BC54: 1.05 | BD54: 0.4734045408 | BE54: 83.5 | BF54: 64.9 | BG54: 46.23333333 | BH54: 2.28 | BI54: 0.6847826087 | BJ54: 62.46666667 | BK54: 46.93333333 | BL54: 31.4 | BM54: 17.42 | BN54: 1.260872188 | BO54: 57.73333333 | BP54: 44.18333333 | BQ54: 30.575 | BR54: 15.38 | BS54: 1.571682788 | BT54: 39.45 | BU54: 29.98333333 | BV54: 20.43333333 | BX54: 2000 | BY54: 2 | BZ54: 1.96 | CA54: 28.3 | CI54: 2000 | CJ54: 0.6833333333 | CK54: 2001-01-01 | CL54: 0.005 | CM54: 2001-01-01 | CN54: 0.5794175168 | CO54: 31.08333333
A55: '459376' | B55: 1928 | C55: 3 | D55: 0.39 | E55: 52.5 | F55: 38.7 | G55: 24.9 | L55: 1928-03-01 | AR55: 1975-01-01 | AS55: 7.8 | AT55: 1.34934201 | AU55: 30.06666667 | AV55: 21.4 | AW55: 12.7 | AX55: 2.73 | AY55: 1.09654282 | AZ55: 57.3 | BA55: 43.4 | BB55: 29.46666667 | BC55: 3.23 | BD55: 1.45628254 | BE55: 80.9 | BF55: 64.63333333 | BG55: 48.3 | BH55: 2.51 | BI55: 0.7538615561 | BJ55: 58.1 | BK55: 44.86666667 | BL55: 31.6 | BM55: 16.08 | BN55: 1.163882019 | BO55: 57.53333333 | BP55: 44.03333333 | BQ55: 30.5 | BR55: 10.4 | BS55: 1.062776398 | BT55: 40.21666667 | BU55: 29.76666667 | BV55: 19.3 | BX55: 2001 | BY55: 2 | BZ55: 0.71 | CA55: 26.1 | CI55: 2001 | CJ55: 0.1 | CK55: 2002-01-01 | CL55: -0.7266666667 | CM55: 2002-01-01 | CN55: 0.847155417 | CO55: 31.56666667
A56: '459376' | B56: 1928 | C56: 4 | D56: 1.48 | E56: 58.5 | F56: 44 | G56: 29.4 | L56: 1928-04-01 | AR56: 1976-01-01 | AS56: 5.36 | AT56: 0.9272401508 | AU56: 32.9 | AV56: 24.16666667 | AW56: 15.43333333 | AX56: 0.89 | AY56: 0.3574809927 | AZ56: 58.7 | BA56: 44.36666667 | BB56: 29.96666667 | BC56: 3.86 | BD56: 1.740325264 | BE56: 78.86666667 | BF56: 62.53333333 | BG56: 46.13333333 | BH56: 0.5 | BI56: 0.1501716247 | BJ56: 61.96666667 | BK56: 46.6 | BL56: 31.23333333 | BM56: 12.58 | BN56: 0.9105494903 | BO56: 57.2 | BP56: 44.11666667 | BQ56: 30.99166667 | BR56: 7.84 | BS56: 0.8011698997 | BT56: 39.91666667 | BU56: 30.25 | BV56: 20.55 | BX56: 2002 | BY56: 2 | BZ56: 0.83 | CA56: 27.8 | CI56: 2002 | CJ56: -0.5333333333 | CK56: 2003-01-01 | CL56: 1.563333333 | CM56: 2003-01-01 | CN56: 0.994309072 | CO56: 33.81666667
A57: '459376' | B57: 1928 | C57: 5 | D57: 0.19 | E57: 76.9 | F57: 57.7 | G57: 38.5 | L57: 1928-05-01 | AR57: 1977-01-01 | AS57: 1.25 | AT57: 0.2162407068 | AU57: 34.13333333 | AV57: 24.4 | AW57: 14.56666667 | AX57: 1.96 | AY57: 0.787261512 | AZ57: 61.4 | BA57: 46.26666667 | BB57: 31.06666667 | BC57: 1.93 | BD57: 0.8701626322 | BE57: 85.46666667 | BF57: 67.1 | BG57: 48.7 | BH57: 4.43 | BI57: 1.330520595 | BJ57: 56.2 | BK57: 42.7 | BL57: 29.13333333 | BM57: 6.47 | BN57: 0.4683032752 | BO57: 59.96666667 | BP57: 45.60833333 | BQ57: 31.19166667 | BR57: 2.19 | BS57: 0.2237961837 | BT57: 43.26666667 | BU57: 31.81666667 | BV57: 20.3 | BX57: 2003 | BY57: 2 | BZ57: 0.51 | CA57: 28.2 | CI57: 2003 | CJ57: -0.1 | CK57: 2004-01-01 | CL57: 0.5333333333 | CM57: 2004-01-01 | CN57: 1.105696214 | CO57: 31.68333333
A58: '459376' | B58: 1928 | C58: 6 | D58: 1.9 | E58: 77.8 | F58: 61.8 | G58: 45.8 | L58: 1928-06-01 | AR58: 1978-01-01 | AS58: 6.49 | AT58: 1.12272175 | AU58: 31.4 | AV58: 23.9 | AW58: 16.33333333 | AX58: 2.33 | AY58: 0.9358772056 | AZ58: 58.9 | BA58: 45.6 | BB58: 32.2 | BC58: 3.58 | BD58: 1.614084053 | BE58: 83.1 | BF58: 65.76666667 | BG58: 48.36666667 | BH58: 3.41 | BI58: 1.024170481 | BJ58: 56.46666667 | BK58: 42.83333333 | BL58: 29.16666667 | BM58: 18.49 | BN58: 1.338319561 | BO58: 57.24166667 | BP58: 44.56666667 | BQ58: 31.81666667 | BR58: 11 | BS58: 1.124090421 | BT58: 40.51666667 | BU58: 30.65 | BV58: 20.71666667 | BX58: 2004 | BY58: 2 | BZ58: 1.08 | CA58: 28.4 | CI58: 2004 | CJ58: -0.45 | CK58: 2005-01-01 | CL58: 0.2833333333 | CM58: 2005-01-01 | CN58: 0.673432352 | CO58: 33.7
A59: '459376' | B59: 1928 | C59: 7 | D59: 0.54 | E59: 88.7 | F59: 70.5 | G59: 52.2 | L59: 1928-07-01 | AR59: 1979-01-01 | AS59: 2.87 | AT59: 0.4964886628 | AU59: 27.46666667 | AV59: 16.4 | AW59: 5.266666667 | AX59: 0.74 | AY59: 0.2972313872 | AZ59: 62.03333333 | BA59: 45.7 | BB59: 29.33333333 | BC59: 2.45 | BD59: 1.104610595 | BE59: 84.93333333 | BF59: 66.66666667 | BG59: 48.36666667 | BH59: 3.15 | BI59: 0.9460812357 | BJ59: 60.46666667 | BK59: 45.73333333 | BL59: 30.96666667 | BM59: 7.57 | BN59: 0.5479220701 | BO59: 58.55 | BP59: 43.21666667 | BQ59: 27.84166667 | BR59: 3.91 | BS59: 0.3995630495 | BT59: 39.35 | BU59: 26.68333333 | BV59: 13.98333333 | BX59: 2005 | BY59: 2 | BZ59: 0.01 | CA59: 30.3 | CI59: 2005 | CJ59: 0.2833333333 | CK59: 2006-01-01 | CL59: -0.1466666667 | CM59: 2006-01-01 | CN59: 1.272265976 | CO59: 31.08333333
A60: '459376' | B60: 1928 | C60: 8 | D60: 0.22 | E60: 86 | F60: 66.9 | G60: 47.8 | L60: 1928-08-01 | AR60: 1980-01-01 | AS60: 8.87 | AT60: 1.534444055 | AU60: 30.43333333 | AV60: 22.86666667 | AW60: 15.23333333 | AX60: 3.22 | AY60: 1.293358198 | AZ60: 60.06666667 | BA60: 46.6 | BB60: 33.06666667 | BC60: 1.06 | BD60: 0.4779131555 | BE60: 79.8 | BF60: 62.5 | BG60: 45.1 | BH60: 2.74 | BI60: 0.8229405034 | BJ60: 60.03333333 | BK60: 45.63333333 | BL60: 31.16666667 | BM60: 16.83 | BN60: 1.218167561 | BO60: 57.4 | BP60: 44.25833333 | BQ60: 31.05833333 | BR60: 11.62 | BS60: 1.187448244 | BT60: 40.36666667 | BU60: 30.5 | BV60: 20.58333333 | BX60: 2006 | BY60: 2 | BZ60: 1.92 | CA60: 25.5 | CI60: 2006 | CJ60: -0.6 | CK60: 2007-01-01 | CL60: -0.07333333333 | CM60: 2007-01-01 | CN60: 1.165988336 | CO60: 30.41666667
A61: '459376' | B61: 1928 | C61: 9 | D61: 0 | E61: 77.3 | F61: 57.5 | G61: 37.6 | L61: 1928-09-01 | AR61: 1981-01-01 | AS61: 6.78 | AT61: 1.172889594 | AU61: 35.1 | AV61: 28 | AW61: 20.83333333 | AX61: 2.68 | AY61: 1.076459618 | AZ61: 61.53333333 | BA61: 46.5 | BB61: 31.43333333 | BC61: 1.82 | BD61: 0.8205678708 | BE61: 81.26666667 | BF61: 63.33333333 | BG61: 45.36666667 | BH61: 4.91 | BI61: 1.474685355 | BJ61: 59.66666667 | BK61: 45.76666667 | BL61: 31.8 | BM61: 13.68 | BN61: 0.9901682852 | BO61: 59.65 | BP61: 45.91666667 | BQ61: 32.125 | BR61: 8.78 | BS61: 0.8972285357 | BT61: 44.48333333 | BU61: 34.23333333 | BV61: 23.91666667 | BX61: 2007 | BY61: 2 | BZ61: 1.08 | CA61: 29.9 | CI61: 2007 | CJ61: 0.4 | CK61: 2008-01-01 | CL61: -0.9316666667 | CM61: 2008-01-01 | CN61: 1.021900382 | CO61: 28.71666667 | CQ61: =BM61 -> 13.68
A62: '459376' | B62: 1928 | C62: 10 | D62: 0.42 | E62: 59.9 | F62: 44.4 | G62: 28.9 | L62: 1928-10-01 | AR62: 1982-01-01 | AS62: 7.19 | AT62: 1.243816546 | AU62: 30.16666667 | AV62: 21.1 | AW62: 11.96666667 | AX62: 3.07 | AY62: 1.233108593 | AZ62: 58.26666667 | BA62: 43.56666667 | BB62: 28.8 | BC62: 2.26 | BD62: 1.018946916 | BE62: 81.73333333 | BF62: 64.6 | BG62: 47.36666667 | BH62: 3.17 | BI62: 0.9520881007 | BJ62: 56.56666667 | BK62: 43.1 | BL62: 29.6 | BM62: 17.44 | BN62: 1.262319802 | BO62: 57.25833333 | BP62: 43.68333333 | BQ62: 30.03333333 | BR62: 13.13 | BS62: 1.341755202 | BT62: 40.36666667 | BU62: 29.91666667 | BV62: 19.4 | BX62: 2008 | BY62: 2 | BZ62: 0.75 | CA62: 27.6 | CI62: 2008 | CJ62: 0.95 | CK62: 2009-01-01 | CL62: -1.403333333 | CM62: 2009-01-01 | CN62: 0.916644643 | CO62: 29.71666667 | CQ62: 17.44
A63: '459376' | B63: 1928 | C63: 11 | D63: 0.87 | E63: 45.2 | F63: 33.9 | G63: 22.6 | L63: 1928-11-01 | AR63: 1983-01-01 | AS63: 9.22 | AT63: 1.594991453 | AU63: 32.73333333 | AV63: 25.8 | AW63: 18.76666667 | AX63: 4 | AY63: 1.606656147 | AZ63: 61.96666667 | BA63: 47.16666667 | BB63: 32.33333333 | BC63: 2.7 | BD63: 1.217325962 | BE63: 79.86666667 | BF63: 63.03333333 | BG63: 46.16666667 | BH63: 6.71 | BI63: 2.015303204 | BJ63: 57.53333333 | BK63: 44.6 | BL63: 31.63333333 | BM63: 19.55 | BN63: 1.415043127 | BO63: 57.5 | BP63: 44.51666667 | BQ63: 31.48333333 | BR63: 14.39 | BS63: 1.47051465 | BT63: 40.76666667 | BU63: 31.68333333 | BV63: 22.55 | BX63: 2009 | BY63: 2 | BZ63: 0.43 | CA63: 26.3 | CI63: 2009 | CJ63: -0.2333333333 | CK63: 2010-01-01 | CL63: 0.34 | CM63: 2010-01-01 | CN63: 0.9197103441 | CO63: 33.63333333 | CQ63: 19.55
A64: '459376' | B64: 1928 | C64: 12 | D64: 2.06 | E64: 27.3 | F64: 18.2 | G64: 9.1 | L64: 1928-12-01 | AR64: 1984-01-01 | AS64: 3.36 | AT64: 0.5812550199 | AU64: 28.7 | AV64: 19.83333333 | AW64: 10.93333333 | AX64: 3.19 | AY64: 1.281308277 | AZ64: 57.53333333 | BA64: 44.46666667 | BB64: 31.33333333 | BC64: 1.79 | BD64: 0.8070420267 | BE64: 81.7 | BF64: 64.3 | BG64: 46.83333333 | BH64: 3.98 | BI64: 1.195366133 | BJ64: 54.73333333 | BK64: 41.46666667 | BL64: 28.13333333 | BM64: 13.93 | BN64: 1.008263466 | BO64: 56.35833333 | BP64: 43.20833333 | BQ64: 30.00833333 | BR64: 10.67 | BS64: 1.090367708 | BT64: 39.93333333 | BU64: 29.93333333 | BV64: 19.9 | BX64: 2010 | BY64: 2 | BZ64: 1.8 | CA64: 35.1 | CI64: 2010 | CJ64: 1.533333333 | CQ64: 13.93
A65: '459376' | B65: 1929 | C65: 1 | D65: 0.76 | E65: 19.4 | F65: 8.3 | G65: -2.9 | L65: 1929-01-01 | M65: =SUM($D64:$D66) -> 2.89 | N65: =M65/M$1052 -> 0.4999485141 | O65: =AVERAGE($E64:$E66) -> 24.63333333 | P65: =AVERAGE($F64:$F66) -> 13.36666667 | Q65: =AVERAGE($G64:$G66) -> 2.066666667 | R65: =SUM($D67:$D69) -> 1.51 | S65: =R65/R$1052 -> 0.6065126955 | T65: =AVERAGE($E67:$E69) -> 61.36666667 | U65: =AVERAGE($F67:$F69) -> 45.73333333 | V65: =AVERAGE($G67:$G69) -> 30.06666667 | W65: =SUM($D70:$D72) -> 1.76 | X65: =W65/W$1052 -> 0.7935161827 | Y65: =AVERAGE($E70:$E72) -> 84.36666667 | Z65: =AVERAGE($F70:$F72) -> 65 | AA65: =AVERAGE($G70:$G72) -> 45.6 | AB65: =SUM($D73:$D75) -> 0.46 | AC65: =AB65/AB$1052 -> 0.1381578947 | AD65: =AVERAGE($E73:$E75) -> 61.2 | AE65: =AVERAGE($F73:$F75) -> 44.03333333 | AF65: =AVERAGE($G73:$G75) -> 26.83333333 | AG65: =SUM(D62:D73) -> 7.47 | AH65: =AG65/AG$1052 -> 0.5406839978 | AI65: =AVERAGE(E62:E73) -> 57.45833333 | AJ65: =AVERAGE(F62:F73) -> 42.13333333 | AK65: =AVERAGE(G62:G73) -> 26.775 | AL65: =SUM(D62:D67) -> 4.45 | AM65: =AL65/AL$1052 -> 0.4547456701 | AN65: =AVERAGE(E62:E67) -> 38.76666667 | AO65: =AVERAGE(F62:F67) -> 26.35 | AP65: =AVERAGE(G62:G67) -> 13.91666667 | AR65: 1985-01-01 | AS65: 2.37 | AT65: 0.4099923801 | AU65: 26.4 | AV65: 16.13333333 | AW65: 5.833333333 | AX65: 1.5 | AY65: 0.6024960551 | AZ65: 61.26666667 | BA65: 45.5 | BB65: 29.63333333 | BC65: 0.88 | BD65: 0.3967580914 | BE65: 85.1 | BF65: 65.6 | BG65: 46.1 | BH65: 3.67 | BI65: 1.102259725 | BJ65: 51.06666667 | BK65: 38.96666667 | BL65: 26.8 | BM65: 9.88 | BN65: 0.7151215393 | BO65: 56.64166667 | BP65: 42.21666667 | BQ65: 27.75 | BR65: 6.86 | BS65: 0.7010236623 | BT65: 36.86666667 | BU65: 25.8 | BV65: 14.68333333 | BX65: 1981 | BY65: 3 | BZ65: 0.38 | CA65: 41.6 | CB65: =AVERAGE(BZ65:BZ94) -> 1.029 | CC65: =AVERAGE(CA65:CA94) -> 38.17666667 | CQ65: 9.88
A66: '459376' | B66: 1929 | C66: 2 | D66: 0.07 | E66: 27.2 | F66: 13.6 | G66: 0 | L66: 1929-02-01 | AR66: 1986-01-01 | AS66: 5.07 | AT66: 0.8770723068 | AU66: 30.6 | AV66: 22.1 | AW66: 13.56666667 | AX66: 1.58 | AY66: 0.634629178 | AZ66: 60.93333333 | BA66: 47.06666667 | BB66: 33.1 | BC66: 1.41 | BD66: 0.6357146691 | BE66: 84.7 | BF66: 66.8 | BG66: 48.83333333 | BH66: 3.32 | BI66: 0.9971395881 | BJ66: 59.06666667 | BK66: 45.7 | BL66: 32.26666667 | BM66: 11.83 | BN66: 0.8562639484 | BO66: 56.90833333 | BP66: 43.89166667 | BQ66: 30.8 | BR66: 8.06 | BS66: 0.8236517082 | BT66: 38.35 | BU66: 28.45 | BV66: 18.48333333 | BX66: 1982 | BY66: 3 | BZ66: 1.81 | CA66: 36.6 | CQ66: 11.83
A67: '459376' | B67: 1929 | C67: 3 | D67: 0.27 | E67: 53.6 | F67: 39.7 | G67: 25.8 | L67: 1929-03-01 | AR67: 1987-01-01 | AS67: 4.88 | AT67: 0.8442037193 | AU67: 32.76666667 | AV67: 24.93333333 | AW67: 17 | AX67: 2.49 | AY67: 1.000143451 | AZ67: 63.76666667 | BA67: 48.9 | BB67: 33.96666667 | BC67: 2.46 | BD67: 1.10911921 | BE67: 83.26666667 | BF67: 65.83333333 | BG67: 48.3 | BH67: 0.45 | BI67: 0.1351544622 | BJ67: 66.23333333 | BK67: 49 | BL67: 31.73333333 | BM67: 11.8 | BN67: 0.8540925267 | BO67: 60.925 | BP67: 46.9 | BQ67: 32.8 | BR67: 7.91 | BS67: 0.8083232024 | BT67: 43.05 | BU67: 32.76666667 | BV67: 22.4 | BX67: 1983 | BY67: 3 | BZ67: 2.79 | CA67: 40.2 | CQ67: 11.8
A68: '459376' | B68: 1929 | C68: 4 | D68: 0.56 | E68: 58.5 | F68: 43.3 | G68: 28 | L68: 1929-04-01 | AR68: 1988-01-01 | AS68: 6.48 | AT68: 1.120991824 | AU68: 30.73333333 | AV68: 21.23333333 | AW68: 11.7 | AX68: 2.41 | AY68: 0.9680103285 | AZ68: 62.03333333 | BA68: 47.5 | BB68: 32.9 | BC68: 2.36 | BD68: 1.064033063 | BE68: 82.26666667 | BF68: 64.6 | BG68: 46.86666667 | BH68: 3.05 | BI68: 0.9160469108 | BJ68: 61.9 | BK68: 47.1 | BL68: 32.23333333 | BM68: 11.93 | BN68: 0.8635020206 | BO68: 59.81666667 | BP68: 45.30833333 | BQ68: 30.74166667 | BR68: 7.5 | BS68: 0.7664252867 | BT68: 43.26666667 | BU68: 31.36666667 | BV68: 19.41666667 | BX68: 1984 | BY68: 3 | BZ68: 1.85 | CA68: 40 | CQ68: 11.93
A69: '459376' | B69: 1929 | C69: 5 | D69: 0.68 | E69: 72 | F69: 54.2 | G69: 36.4 | L69: 1929-05-01 | AR69: 1989-01-01 | AS69: 3.8 | AT69: 0.6573717487 | AU69: 30.53333333 | AV69: 21.4 | AW69: 12.26666667 | AX69: 5.01 | AY69: 2.012336824 | AZ69: 59.56666667 | BA69: 45.46666667 | BB69: 31.26666667 | BC69: 1.5 | BD69: 0.6762922012 | BE69: 81.73333333 | BF69: 64.73333333 | BG69: 47.7 | BH69: 2.67 | BI69: 0.801916476 | BJ69: 61.76666667 | BK69: 46.96666667 | BL69: 32.13333333 | BM69: 13.12 | BN69: 0.9496350805 | BO69: 58.575 | BP69: 44.7 | BQ69: 30.78333333 | BR69: 8.48 | BS69: 0.8665715242 | BT69: 40.73333333 | BU69: 30.2 | BV69: 19.63333333 | BX69: 1985 | BY69: 3 | BZ69: 0.64 | CA69: 34.6 | CQ69: 13.12
A70: '459376' | B70: 1929 | C70: 6 | D70: 1.52 | E70: 76.4 | F70: 60.7 | G70: 44.9 | L70: 1929-06-01 | AR70: 1990-01-01 | AS70: 4.62 | AT70: 0.7992256523 | AU70: 33.56666667 | AV70: 25.1 | AW70: 16.6 | AX70: 4.34 | AY70: 1.743221919 | AZ70: 61.73333333 | BA70: 47.6 | BB70: 33.46666667 | BC70: 4.53 | BD70: 2.042402448 | BE70: 82.13333333 | BF70: 65.7 | BG70: 49.2 | BH70: 4.17 | BI70: 1.25243135 | BJ70: 61.3 | BK70: 46.56666667 | BL70: 31.8 | BM70: 16.15 | BN70: 1.16894867 | BO70: 60.09166667 | BP70: 46.60833333 | BQ70: 33.09166667 | BR70: 7.73 | BS70: 0.7899289955 | BT70: 43.36666667 | BU70: 32.85 | BV70: 22.3 | BX70: 1986 | BY70: 3 | BZ70: 0.6 | CA70: 40.6 | CQ70: 16.15
A71: '459376' | B71: 1929 | C71: 7 | D71: 0 | E71: 88.1 | F71: 66.9 | G71: 45.7 | L71: 1929-07-01 | AR71: 1991-01-01 | AS71: 2.69 | AT71: 0.465350001 | AU71: 32.8 | AV71: 24.1 | AW71: 15.36666667 | AX71: 3.17 | AY71: 1.273274996 | AZ71: 59.56666667 | BA71: 45.73333333 | BB71: 31.83333333 | BC71: 2.65 | BD71: 1.194782889 | BE71: 80.66666667 | BF71: 64.33333333 | BG71: 47.9 | BH71: 2.95 | BI71: 0.8860125858 | BJ71: 60.33333333 | BK71: 45.83333333 | BL71: 31.3 | BM71: 12.7 | BN71: 0.919235177 | BO71: 58.46666667 | BP71: 45.11666667 | BQ71: 31.70833333 | BR71: 7.84 | BS71: 0.8011698997 | BT71: 41.63333333 | BU71: 31.26666667 | BV71: 20.85 | BX71: 1987 | BY71: 3 | BZ71: 1.09 | CA71: 39.7 | CQ71: 12.7
A72: '459376' | B72: 1929 | C72: 8 | D72: 0.24 | E72: 88.6 | F72: 67.4 | G72: 46.2 | L72: 1929-08-01 | AR72: 1992-01-01 | AS72: 4.5 | AT72: 0.7784665445 | AU72: 34.96666667 | AV72: 28.36666667 | AW72: 21.7 | AX72: 0.92 | AY72: 0.3695309138 | AZ72: 66.33333333 | BA72: 49.9 | BB72: 33.4 | BC72: 6.32 | BD72: 2.849444474 | BE72: 83.13333333 | BF72: 66.7 | BG72: 50.2 | BH72: 2.2 | BI72: 0.6607551487 | BJ72: 58.13333333 | BK72: 45.46666667 | BL72: 32.73333333 | BM72: 14.68 | BN72: 1.062549008 | BO72: 60.40833333 | BP72: 47.20833333 | BQ72: 33.95 | BR72: 8 | BS72: 0.8175203059 | BT72: 44.18333333 | BU72: 34.35 | BV72: 24.45 | BX72: 1988 | BY72: 3 | BZ72: 0.6 | CA72: 39.2 | CQ72: 14.68
A73: '459376' | B73: 1929 | C73: 9 | D73: 0.02 | E73: 73.3 | F73: 55 | G73: 36.6 | L73: 1929-09-01 | AR73: 1993-01-01 | AS73: 3.92 | AT73: 0.6781308565 | AU73: 27.16666667 | AV73: 18.93333333 | AW73: 10.63333333 | AX73: 3.49 | AY73: 1.401807488 | AZ73: 60.1 | BA73: 46.7 | BB73: 33.26666667 | BC73: 7 | BD73: 3.156030272 | BE73: 75.8 | BF73: 61.6 | BG73: 47.3 | BH73: 0.83 | BI73: 0.249284897 | BJ73: 61.56666667 | BK73: 45.06666667 | BL73: 28.56666667 | BM73: 17.15 | BN73: 1.241329393 | BO73: 55.85 | BP73: 43.46666667 | BQ73: 31.01666667 | BR73: 6.3 | BS73: 0.6437972409 | BT73: 38.5 | BU73: 28.93333333 | BV73: 19.3 | BX73: 1989 | BY73: 3 | BZ73: 1.89 | CA73: 34.1 | CQ73: 17.15
A74: '459376' | B74: 1929 | C74: 10 | D74: 0.33 | E74: 64.8 | F74: 46.7 | G74: 28.6 | L74: 1929-10-01 | AR74: 1994-01-01 | AS74: 5.55 | AT74: 0.9601087382 | AU74: 32.03333333 | AV74: 25 | AW74: 17.86666667 | AX74: 2.79 | AY74: 1.120642662 | AZ74: 63.76666667 | BA74: 48.86666667 | BB74: 33.93333333 | BC74: 1.6 | BD74: 0.7213783479 | BE74: 82.53333333 | BF74: 65.4 | BG74: 48.16666667 | BH74: 6.15 | BI74: 1.847110984 | BJ74: 58.03333333 | BK74: 43.93333333 | BL74: 29.8 | BM74: 10.48 | BN74: 0.7585499729 | BO74: 60.175 | BP74: 46.31666667 | BQ74: 32.39166667 | BR74: 5.98 | BS74: 0.6110964286 | BT74: 42.91666667 | BU74: 31.93333333 | BV74: 20.88333333 | BX74: 1990 | BY74: 3 | BZ74: 0.46 | CA74: 39.6 | CQ74: 10.48
A75: '459376' | B75: 1929 | C75: 11 | D75: 0.11 | E75: 45.5 | F75: 30.4 | G75: 15.3 | L75: 1929-11-01 | AR75: 1995-01-01 | AS75: 8.17 | AT75: 1.41334926 | AU75: 32.3 | AV75: 24.16666667 | AW75: 16 | AX75: 5.05 | AY75: 2.028403385 | AZ75: 59.8 | BA75: 45.9 | BB75: 31.93333333 | BC75: 1.66 | BD75: 0.748430036 | BE75: 78.86666667 | BF75: 63.03333333 | BG75: 47.16666667 | BH75: 5.42 | BI75: 1.627860412 | BJ75: 58.93333333 | BK75: 45.76666667 | BL75: 32.53333333 | BM75: 20.9 | BN75: 1.512757102 | BO75: 57.125 | BP75: 44.20833333 | BQ75: 31.25833333 | BR75: 17.53 | BS75: 1.79139137 | BT75: 39.51666667 | BU75: 29.65 | BV75: 19.76666667 | BX75: 1991 | BY75: 3 | BZ75: 0.99 | CA75: 37.5 | CQ75: 20.9
A76: '459376' | B76: 1929 | C76: 12 | D76: 1.91 | E76: 32.7 | F76: 22.6 | G76: 12.5 | L76: 1929-12-01 | AR76: 1996-01-01 | AS76: 7.63 | AT76: 1.319933274 | AU76: 29.33333333 | AV76: 21.76666667 | AW76: 14.16666667 | AX76: 2.45 | AY76: 0.98407689 | AZ76: 57.4 | BA76: 44.5 | BB76: 31.56666667 | BC76: 1.15 | BD76: 0.5184906876 | BE76: 81.93333333 | BF76: 64.4 | BG76: 46.86666667 | BH76: 4.19 | BI76: 1.258438215 | BJ76: 55.6 | BK76: 43.43333333 | BL76: 31.2 | BM76: 17.38 | BN76: 1.257976959 | BO76: 56.31666667 | BP76: 43.70833333 | BQ76: 31.05833333 | BR76: 13.22 | BS76: 1.350952305 | BT76: 39 | BU76: 29.71666667 | BV76: 20.38333333 | BX76: 1992 | BY76: 3 | BZ76: 0.58 | CA76: 44.6 | CQ76: 17.38
A77: '459376' | B77: 1930 | C77: 1 | D77: 0.41 | E77: 14.7 | F77: 1.5 | G77: -11.8 | L77: 1930-01-01 | M77: =SUM($D76:$D78) -> 4.12 | N77: =M77/M$1052 -> 0.7127293696 | O77: =AVERAGE($E76:$E78) -> 28.76666667 | P77: =AVERAGE($F76:$F78) -> 16.86666667 | Q77: =AVERAGE($G76:$G78) -> 4.9 | R77: =SUM($D79:$D81) -> 1.47 | S77: =R77/R$1052 -> 0.590446134 | T77: =AVERAGE($E79:$E81) -> 64 | U77: =AVERAGE($F79:$F81) -> 47.23333333 | V77: =AVERAGE($G79:$G81) -> 30.4 | W77: =SUM($D82:$D84) -> 2.98 | X77: =W77/W$1052 -> 1.343567173 | Y77: =AVERAGE($E82:$E84) -> 84.76666667 | Z77: =AVERAGE($F82:$F84) -> 65.73333333 | AA77: =AVERAGE($G82:$G84) -> 46.7 | AB77: =SUM($D85:$D87) -> 2.08 | AC77: =AB77/AB$1052 -> 0.6247139588 | AD77: =AVERAGE($E85:$E87) -> 57.93333333 | AE77: =AVERAGE($F85:$F87) -> 44 | AF77: =AVERAGE($G85:$G87) -> 29.96666667 | AG77: =SUM(D74:D85) -> 10.08 | AH77: =AG77/AG$1052 -> 0.7295976838 | AI77: =AVERAGE(E74:E85) -> 59.84166667 | AJ77: =AVERAGE(F74:F85) -> 43.69166667 | AK77: =AVERAGE(G74:G85) -> 27.5 | AL77: =SUM(D74:D79) -> 4.97 | AM77: =AL77/AL$1052 -> 0.50788449 | AN77: =AVERAGE(E74:E79) -> 41.85 | AO77: =AVERAGE(F74:F79) -> 27.75 | AP77: =AVERAGE(G74:G79) -> 13.61666667 | AR77: 1997-01-01 | AS77: 10.24 | AT77: 1.77144387 | AU77: 29.03333333 | AV77: 20.2 | AW77: 11.3 | AX77: 3.45 | AY77: 1.385740927 | AZ77: 57.53333333 | BA77: 44.9 | BB77: 32.2 | BC77: 4.41 | BD77: 1.988299071 | BE77: 79 | BF77: 63.33333333 | BG77: 47.56666667 | BH77: 4.45 | BI77: 1.33652746 | BJ77: 58.9 | BK77: 46.43333333 | BL77: 33.96666667 | BM77: 22.34 | BN77: 1.616985343 | BO77: 55.55833333 | BP77: 43.24166667 | BQ77: 30.85833333 | BR77: 14.68 | BS77: 1.500149761 | BT77: 37.75 | BU77: 28.28333333 | BV77: 18.75 | BX77: 1993 | BY77: 3 | BZ77: 0.2 | CA77: 35.6 | CQ77: 22.34
A78: '459376' | B78: 1930 | C78: 2 | D78: 1.8 | E78: 38.9 | F78: 26.5 | G78: 14 | L78: 1930-02-01 | AR78: 1998-01-01 | AS78: 7.2 | AT78: 1.245546471 | AU78: 33.8 | AV78: 27.13333333 | AW78: 20.43333333 | AX78: 5.29 | AY78: 2.124802754 | AZ78: 60.93333333 | BA78: 47.8 | BB78: 34.63333333 | BC78: 2.68 | BD78: 1.208308733 | BE78: 83.86666667 | BF78: 67.26666667 | BG78: 50.6 | BH78: 3.2 | BI78: 0.9610983982 | BJ78: 62.6 | BK78: 48.46666667 | BL78: 34.3 | BM78: 18.83 | BN78: 1.362929007 | BO78: 59.95833333 | BP78: 47.43333333 | BQ78: 34.875 | BR78: 11.96 | BS78: 1.222192857 | BT78: 42.26666667 | BU78: 33.43333333 | BV78: 24.58333333 | BX78: 1994 | BY78: 3 | BZ78: 0.16 | CA78: 40.1 | CQ78: 18.83
A79: '459376' | B79: 1930 | C79: 3 | D79: 0.41 | E79: 54.5 | F79: 38.8 | G79: 23.1 | L79: 1930-03-01 | AR79: 1999-01-01 | AS79: 7.43 | AT79: 1.285334761 | AU79: 33.13333333 | AV79: 25.63333333 | AW79: 18.06666667 | AX79: 2.22 | AY79: 0.8916941615 | AZ79: 57.93333333 | BA79: 43.93333333 | BB79: 29.86666667 | BC79: 2.01 | BD79: 0.9062315496 | BE79: 79.86666667 | BF79: 63.96666667 | BG79: 48 | BH79: 3.41 | BI79: 1.024170481 | BJ79: 59.86666667 | BK79: 46.3 | BL79: 32.7 | BM79: 14.82 | BN79: 1.072682309 | BO79: 57.78333333 | BP79: 44.975 | BQ79: 32.1 | BR79: 12.12 | BS79: 1.238543263 | BT79: 41.93333333 | BU79: 32.5 | BV79: 23.01666667 | BX79: 1995 | BY79: 3 | BZ79: 3.48 | CA79: 35.1 | CQ79: 14.82
A80: '459376' | B80: 1930 | C80: 4 | D80: 0.46 | E80: 67.9 | F80: 50.1 | G80: 32.2 | L80: 1930-04-01 | AR80: 2000-01-01 | AS80: 5.42 | AT80: 0.9376197047 | AU80: 33.26666667 | AV80: 26.06666667 | AW80: 18.86666667 | AX80: 1.88 | AY80: 0.755128389 | AZ80: 60.6 | BA80: 47.06666667 | BB80: 33.43333333 | BC80: 2.36 | BD80: 1.064033063 | BE80: 80.73333333 | BF80: 63.96666667 | BG80: 47.16666667 | BH80: 2.29 | BI80: 0.6877860412 | BJ80: 56.66666667 | BK80: 43.66666667 | BL80: 30.63333333 | BM80: 13.05 | BN80: 0.9445684299 | BO80: 58.48333333 | BP80: 45.9 | BQ80: 33.275 | BR80: 9.42 | BS80: 0.9626301602 | BT80: 42.31666667 | BU80: 33.3 | BV80: 24.26666667 | BX80: 1996 | BY80: 3 | BZ80: 0.31 | CA80: 36.6 | CQ80: 13.05
A81: '459376' | B81: 1930 | C81: 5 | D81: 0.6 | E81: 69.6 | F81: 52.8 | G81: 35.9 | L81: 1930-05-01 | AR81: 2001-01-01 | AS81: 2.43 | AT81: 0.420371934 | AU81: 32 | AV81: 24.13333333 | AW81: 16.2 | AX81: 1.47 | AY81: 0.590446134 | AZ81: 61.53333333 | BA81: 46.83333333 | BB81: 32.06666667 | BC81: 1.69 | BD81: 0.76195588 | BE81: 80.9 | BF81: 64.83333333 | BG81: 48.76666667 | BH81: 3.55 | BI81: 1.066218535 | BJ81: 59.76666667 | BK81: 46.86666667 | BL81: 33.9 | BM81: 8.32 | BN81: 0.602207612 | BO81: 58.10833333 | BP81: 45.15 | BQ81: 32.15 | BR81: 5.67 | BS81: 0.5794175168 | BT81: 40.95 | BU81: 31.08333333 | BV81: 21.16666667 | BX81: 1997 | BY81: 3 | BZ81: 1.12 | CA81: 34.9 | CQ81: 8.32
A82: '459376' | B82: 1930 | C82: 6 | D82: 2.67 | E82: 74.5 | F82: 58.2 | G82: 41.9 | L82: 1930-06-01 | AR82: 2002-01-01 | AS82: 4.46 | AT82: 0.7715468419 | AU82: 33.1 | AV82: 25.33333333 | AW82: 17.53333333 | AX82: 1.57 | AY82: 0.6306125377 | AZ82: 56.93333333 | BA82: 43.86666667 | BB82: 30.76666667 | BC82: 0.77 | BD82: 0.3471633299 | BE82: 82.93333333 | BF82: 65.63333333 | BG82: 48.33333333 | BH82: 1.05 | BI82: 0.3153604119 | BJ82: 61.3 | BK82: 46.13333333 | BL82: 30.9 | BM82: 9.86 | BN82: 0.7136739248 | BO82: 57.95833333 | BP82: 45.2 | BQ82: 32.41666667 | BR82: 8.29 | BS82: 0.847155417 | BT82: 40.83333333 | BU82: 31.56666667 | BV82: 22.26666667 | BX82: 1998 | BY82: 3 | BZ82: 1.23 | CA82: 39.3 | CQ82: 9.86
A83: '459376' | B83: 1930 | C83: 7 | D83: 0.08 | E83: 92.5 | F83: 72.1 | G83: 51.7 | L83: 1930-07-01 | AR83: 2003-01-01 | AS83: 7.67 | AT83: 1.326852977 | AU83: 35 | AV83: 27.76666667 | AW83: 20.46666667 | AX83: 3.67 | AY83: 1.474107015 | AZ83: 58.9 | BA83: 46.16666667 | BB83: 33.36666667 | BC83: 0.11 | BD83: 0.04959476142 | BE83: 85.1 | BF83: 67.33333333 | BG83: 49.56666667 | BH83: 5.72 | BI83: 1.717963387 | BJ83: 59.9 | BK83: 46.16666667 | BL83: 32.36666667 | BM83: 12.58 | BN83: 0.9105494903 | BO83: 60.34166667 | BP83: 47.05833333 | BQ83: 33.71666667 | BR83: 9.73 | BS83: 0.994309072 | BT83: 44.11666667 | BU83: 33.81666667 | BV83: 23.43333333 | BX83: 1999 | BY83: 3 | BZ83: 1.62 | CA83: 35.4 | CQ83: 12.58
A84: '459376' | B84: 1930 | C84: 8 | D84: 0.23 | E84: 87.3 | F84: 66.9 | G84: 46.5 | L84: 1930-08-01 | AR84: 2004-01-01 | AS84: 4.11 | AT84: 0.710999444 | AU84: 30.73333333 | AV84: 23.43333333 | AW84: 16.1 | AX84: 2.86 | AY84: 1.148759145 | AZ84: 63.5 | BA84: 48.4 | BB84: 33.23333333 | BC84: 3.47 | BD84: 1.564489292 | BE84: 84.36666667 | BF84: 67.5 | BG84: 50.63333333 | BH84: 2.11 | BI84: 0.6337242563 | BJ84: 59.83333333 | BK84: 45.93333333 | BL84: 31.96666667 | BM84: 16.18 | BN84: 1.171120092 | BO84: 59.15833333 | BP84: 46.05833333 | BQ84: 32.91666667 | BR84: 10.82 | BS84: 1.105696214 | BT84: 41.46666667 | BU84: 31.68333333 | BV84: 21.86666667 | BX84: 2000 | BY84: 3 | BZ84: 0.68 | CA84: 39.1 | CQ84: 16.18
A85: '459376' | B85: 1930 | C85: 9 | D85: 1.07 | E85: 75.2 | F85: 57.7 | G85: 40.1 | L85: 1930-09-01 | AR85: 2005-01-01 | AS85: 3.82 | AT85: 0.6608316 | AU85: 35 | AV85: 26.33333333 | AW85: 17.63333333 | AX85: 2.45 | AY85: 0.98407689 | AZ85: 63.16666667 | BA85: 48.86666667 | BB85: 34.53333333 | BC85: 2.03 | BD85: 0.9152487789 | BE85: 82.13333333 | BF85: 64.93333333 | BG85: 47.7 | BH85: 3.28 | BI85: 0.9851258581 | BJ85: 56.43333333 | BK85: 44.4 | BL85: 32.36666667 | BM85: 10.6 | BN85: 0.7672356596 | BO85: 60.125 | BP85: 46.53333333 | BQ85: 32.90833333 | BR85: 6.59 | BS85: 0.673432352 | BT85: 44.51666667 | BU85: 33.7 | BV85: 22.85 | BX85: 2001 | BY85: 3 | BZ85: 1.02 | CA85: 40.1 | CQ85: 10.6
A86: '459376' | B86: 1930 | C86: 10 | D86: 0.2 | E86: 58.2 | F86: 44.3 | G86: 30.3 | L86: 1930-10-01 | AR86: 2006-01-01 | AS86: 8.15 | AT86: 1.409889408 | AU86: 32.4 | AV86: 24.36666667 | AW86: 16.33333333 | AX86: 3.58 | AY86: 1.437957251 | AZ86: 59.76666667 | BA86: 46.2 | BB86: 32.6 | BC86: 2.74 | BD86: 1.235360421 | BE86: 83.3 | BF86: 66.36666667 | BG86: 49.4 | BH86: 5.26 | BI86: 1.579805492 | BJ86: 59.06666667 | BK86: 45.43333333 | BL86: 31.73333333 | BM86: 17.79 | BN86: 1.287653055 | BO86: 58.29166667 | BP86: 45.575 | BQ86: 32.83333333 | BR86: 12.45 | BS86: 1.272265976 | BT86: 40.1 | BU86: 31.08333333 | BV86: 22.05 | BX86: 2002 | BY86: 3 | BZ86: 0.79 | CA86: 33.2 | CQ86: 17.79
A87: '459376' | B87: 1930 | C87: 11 | D87: 0.81 | E87: 40.4 | F87: 30 | G87: 19.5 | L87: 1930-11-01 | AR87: 2007-01-01 | AS87: 6.14 | AT87: 1.062174352 | AU87: 30.56666667 | AV87: 22.33333333 | AW87: 14.1 | AX87: 0.9 | AY87: 0.3614976331 | AZ87: 60.83333333 | BA87: 46.66666667 | BB87: 32.43333333 | BC87: 1.21 | BD87: 0.5455423756 | BE87: 82.63333333 | BF87: 65.83333333 | BG87: 49.03333333 | BH87: 2.71 | BI87: 0.8139302059 | BJ87: 57.86666667 | BK87: 44.56666667 | BL87: 31.2 | BM87: 13.65 | BN87: 0.9879968635 | BO87: 58.14166667 | BP87: 44.98333333 | BQ87: 31.79166667 | BR87: 11.41 | BS87: 1.165988336 | BT87: 40.21666667 | BU87: 30.41666667 | BV87: 20.6 | BX87: 2003 | BY87: 3 | BZ87: 1.03 | CA87: 38.9 | CQ87: 13.65
A88: '459376' | B88: 1930 | C88: 12 | D88: 0.36 | E88: 30.5 | F88: 22.9 | G88: 15.3 | L88: 1930-12-01 | AR88: 2008-01-01 | AS88: 7.36 | AT88: 1.273225282 | AU88: 29.86666667 | AV88: 20.36666667 | AW88: 10.8 | AX88: 1.15 | AY88: 0.4619136422 | AZ88: 58.53333333 | BA88: 45.36666667 | BB88: 32.13333333 | BC88: 1.53 | BD88: 0.6898180452 | BE88: 81.4 | BF88: 64.76666667 | BG88: 48.1 | BH88: 3.87 | BI88: 1.162328375 | BJ88: 60.6 | BK88: 46.6 | BL88: 32.56666667 | BM88: 12.34 | BN88: 0.8931781169 | BO88: 56.925 | BP88: 43.64166667 | BQ88: 30.30833333 | BR88: 10 | BS88: 1.021900382 | BT88: 39.08333333 | BU88: 28.71666667 | BV88: 18.28333333 | BX88: 2004 | BY88: 3 | BZ88: 1.09 | CA88: 41.5 | CQ88: 12.34
A89: '459376' | B89: 1931 | C89: 1 | D89: 2.35 | E89: 31.5 | F89: 24.8 | G89: 18 | L89: 1931-01-01 | M89: =SUM($D88:$D90) -> 3.04 | N89: =M89/M$1052 -> 0.5258973989 | O89: =AVERAGE($E88:$E90) -> 33.1 | P89: =AVERAGE($F88:$F90) -> 24.3 | Q89: =AVERAGE($G88:$G90) -> 15.46666667 | R89: =SUM($D91:$D93) -> 0.75 | S89: =R89/R$1052 -> 0.3012480275 | T89: =AVERAGE($E91:$E93) -> 63.7 | U89: =AVERAGE($F91:$F93) -> 47.36666667 | V89: =AVERAGE($G91:$G93) -> 31 | W89: =SUM($D94:$D96) -> 1.28 | X89: =W89/W$1052 -> 0.5771026783 | Y89: =AVERAGE($E94:$E96) -> 85.13333333 | Z89: =AVERAGE($F94:$F96) -> 66.73333333 | AA89: =AVERAGE($G94:$G96) -> 48.33333333 | AB89: =SUM($D97:$D99) -> 1.76 | AC89: =AB89/AB$1052 -> 0.528604119 | AD89: =AVERAGE($E97:$E99) -> 58.16666667 | AE89: =AVERAGE($F97:$F99) -> 45.46666667 | AF89: =AVERAGE($G97:$G99) -> 32.7 | AG89: =SUM(D86:D97) -> 6.81 | AH89: =AG89/AG$1052 -> 0.4929127209 | AI89: =AVERAGE(E86:E97) -> 59.6 | AJ89: =AVERAGE(F86:F97) -> 45.63333333 | AK89: =AVERAGE(G86:G97) -> 31.625 | AL89: =SUM(D86:D91) -> 4.62 | AM89: =AL89/AL$1052 -> 0.4721179766 | AN89: =AVERAGE(E86:E91) -> 41.53333333 | AO89: =AVERAGE(F86:F91) -> 30.91666667 | AP89: =AVERAGE(G86:G91) -> 20.25 | AR89: 2009-01-01 | AS89: 4.03 | AT89: 0.6971600387 | AU89: 29.46666667 | AV89: 20.66666667 | AW89: 11.8 | AX89: 2.31 | AY89: 0.9278439248 | AZ89: 58.93333333 | BA89: 44.5 | BB89: 30.03333333 | BC89: 1.65 | BD89: 0.7439214213 | BE89: 84.4 | BF89: 66.96666667 | BG89: 49.5 | BH89: 3.61 | BI89: 1.08423913 | BJ89: 59.23333333 | BK89: 46.36666667 | BL89: 33.46666667 | BM89: 12.54 | BN89: 0.9076542614 | BO89: 58.64166667 | BP89: 45.05833333 | BQ89: 31.425 | BR89: 8.97 | BS89: 0.916644643 | BT89: 39.85 | BU89: 29.71666667 | BV89: 19.51666667 | BX89: 2005 | BY89: 3 | BZ89: 0.78 | CA89: 41.8 | CQ89: 12.54
A90: '459376' | B90: 1931 | C90: 2 | D90: 0.33 | E90: 37.3 | F90: 25.2 | G90: 13.1 | L90: 1931-02-01 | AR90: 2010-01-01 | AS90: 5.73 | AT90: 0.9912474 | AU90: 35.36666667 | AV90: 27.93333333 | AW90: 20.43333333 | AX90: 5.46 | AY90: 2.193085641 | AZ90: 58.73333333 | BA90: 45.66666667 | BB90: 32.5 | BC90: 3.19 | BD90: 1.438248081 | BE90: 80.6 | BF90: 63.86666667 | BG90: 47.13333333 | BH90: 3.84 | BI90: 1.153318078 | BJ90: 58.26666667 | BK90: 45.53333333 | BL90: 32.76666667 | BM90: 18.41 | BN90: 1.332529103 | BO90: 57.81666667 | BP90: 45.59166667 | BQ90: 33.31666667 | BR90: 9 | BS90: 0.9197103441 | BT90: 42.93333333 | BU90: 33.63333333 | BV90: 24.28333333 | BX90: 2006 | BY90: 3 | BZ90: 1.33 | CA90: 36.8 | CQ90: 18.41
A91: '459376' | B91: 1931 | C91: 3 | D91: 0.57 | E91: 51.3 | F91: 38.3 | G91: 25.3 | L91: 1931-03-01 | BX91: 2007 | BY91: 3 | BZ91: 0.36 | CA91: 38.7
A92: '459376' | B92: 1931 | C92: 4 | D92: 0.1 | E92: 64.5 | F92: 47.3 | G92: 30 | L92: 1931-04-01 | BX92: 2008 | BY92: 3 | BZ92: 0.42 | CA92: 36
A93: '459376' | B93: 1931 | C93: 5 | D93: 0.08 | E93: 75.3 | F93: 56.5 | G93: 37.7 | L93: 1931-05-01 | BX93: 2009 | BY93: 3 | BZ93: 1.15 | CA93: 33.5
A94: '459376' | B94: 1931 | C94: 6 | D94: 1.16 | E94: 77.5 | F94: 62.1 | G94: 46.7 | L94: 1931-06-01 | BX94: 2010 | BY94: 3 | BZ94: 0.42 | CA94: 40.4
A95: '459376' | B95: 1931 | C95: 7 | D95: 0.12 | E95: 89.9 | F95: 70 | G95: 50.1 | L95: 1931-07-01 | BX95: 1981 | BY95: 4 | BZ95: 0.16 | CA95: 44.9 | CB95: =AVERAGE(BZ95:BZ124) -> 0.756 | CC95: =AVERAGE(CA95:CA124) -> 46.5
A96: '459376' | B96: 1931 | C96: 8 | D96: 0 | E96: 88 | F96: 68.1 | G96: 48.2 | L96: 1931-08-01 | BX96: 1982 | BY96: 4 | BZ96: 0.32 | CA96: 41.7
A97: '459376' | B97: 1931 | C97: 9 | D97: 0.73 | E97: 70.8 | F97: 58.1 | G97: 45.3 | L97: 1931-09-01 | BX97: 1983 | BY97: 4 | BZ97: 0.91 | CA97: 45.9
A98: '459376' | B98: 1931 | C98: 10 | D98: 0.01 | E98: 64.4 | F98: 48.8 | G98: 33.2 | L98: 1931-10-01 | BX98: 1984 | BY98: 4 | BZ98: 0.65 | CA98: 43.3
A99: '459376' | B99: 1931 | C99: 11 | D99: 1.02 | E99: 39.3 | F99: 29.5 | G99: 19.6 | L99: 1931-11-01 | BX99: 1985 | BY99: 4 | BZ99: 0.1 | CA99: 46.1
A100: '459376' | B100: 1931 | C100: 12 | D100: 3.62 | E100: 29 | F100: 22.2 | G100: 15.3 | L100: 1931-12-01 | BX100: 1986 | BY100: 4 | BZ100: 0.79 | CA100: 45.5
A101: '459376' | B101: 1932 | C101: 1 | D101: 1.79 | E101: 26.3 | F101: 16.5 | G101: 6.6 | L101: 1932-01-01 | M101: =SUM($D100:$D102) -> 6.05 | N101: =M101/M$1052 -> 1.046605021 | O101: =AVERAGE($E100:$E102) -> 29.23333333 | P101: =AVERAGE($F100:$F102) -> 19.86666667 | Q101: =AVERAGE($G100:$G102) -> 10.4 | R101: =SUM($D103:$D105) -> 1.67 | S101: =R101/R$1052 -> 0.6707789413 | T101: =AVERAGE($E103:$E105) -> 61 | U101: =AVERAGE($F103:$F105) -> 47 | V101: =AVERAGE($G103:$G105) -> 32.93333333 | W101: =SUM($D106:$D108) -> 0.3 | X101: =W101/W$1052 -> 0.1352584402 | Y101: =AVERAGE($E106:$E108) -> 83.46666667 | Z101: =AVERAGE($F106:$F108) -> 65.93333333 | AA101: =AVERAGE($G106:$G108) -> 48.33333333 | AB101: =SUM($D109:$D111) -> 3.68 | AC101: =AB101/AB$1052 -> 1.105263158 | AD101: =AVERAGE($E109:$E111) -> 59.1 | AE101: =AVERAGE($F109:$F111) -> 45.73333333 | AF101: =AVERAGE($G109:$G111) -> 32.3 | AG101: =SUM(D98:D109) -> 9.19 | AH101: =AG101/AG$1052 -> 0.6651788407 | AI101: =AVERAGE(E98:E109) -> 58.525 | AJ101: =AVERAGE(F98:F109) -> 44.59166667 | AK101: =AVERAGE(G98:G109) -> 30.59166667 | AL101: =SUM(D98:D103) -> 7.9 | AM101: =AL101/AL$1052 -> 0.807301302 | AN101: =AVERAGE(E98:E103) -> 40.2 | AO101: =AVERAGE(F98:F103) -> 29.35 | AP101: =AVERAGE(G98:G103) -> 18.41666667 | BX101: 1987 | BY101: 4 | BZ101: 0.23 | CA101: 50.6
A102: '459376' | B102: 1932 | C102: 2 | D102: 0.64 | E102: 32.4 | F102: 20.9 | G102: 9.3 | L102: 1932-02-01 | BX102: 1988 | BY102: 4 | BZ102: 1.2 | CA102: 49
A103: '459376' | B103: 1932 | C103: 3 | D103: 0.82 | E103: 49.8 | F103: 38.2 | G103: 26.5 | L103: 1932-03-01 | BX103: 1989 | BY103: 4 | BZ103: 1.24 | CA103: 48.9
A104: '459376' | B104: 1932 | C104: 4 | D104: 0.49 | E104: 63.4 | F104: 49.2 | G104: 34.9 | L104: 1932-04-01 | BX104: 1990 | BY104: 4 | BZ104: 0.67 | CA104: 50.3
A105: '459376' | B105: 1932 | C105: 5 | D105: 0.36 | E105: 69.8 | F105: 53.6 | G105: 37.4 | L105: 1932-05-01 | BX105: 1991 | BY105: 4 | BZ105: 0.71 | CA105: 46
A106: '459376' | B106: 1932 | C106: 6 | D106: 0.02 | E106: 82.8 | F106: 65.2 | G106: 47.6 | L106: 1932-06-01 | BX106: 1992 | BY106: 4 | BZ106: 0.34 | CA106: 47.6
A107: '459376' | B107: 1932 | C107: 7 | D107: 0.24 | E107: 82.3 | F107: 65.3 | G107: 48.2 | L107: 1932-07-01 | BX107: 1993 | BY107: 4 | BZ107: 2.34 | CA107: 44.9
A108: '459376' | B108: 1932 | C108: 8 | D108: 0.04 | E108: 85.3 | F108: 67.3 | G108: 49.2 | L108: 1932-08-01 | BX108: 1994 | BY108: 4 | BZ108: 1.59 | CA108: 50.6
A109: '459376' | B109: 1932 | C109: 9 | D109: 0.14 | E109: 77.5 | F109: 58.4 | G109: 39.3 | L109: 1932-09-01 | BX109: 1995 | BY109: 4 | BZ109: 0.64 | CA109: 45.5
A110: '459376' | B110: 1932 | C110: 10 | D110: 0.43 | E110: 57.2 | F110: 44.2 | G110: 31.1 | L110: 1932-10-01 | BX110: 1996 | BY110: 4 | BZ110: 0.81 | CA110: 46.4
A111: '459376' | B111: 1932 | C111: 11 | D111: 3.11 | E111: 42.6 | F111: 34.6 | G111: 26.5 | L111: 1932-11-01 | BX111: 1997 | BY111: 4 | BZ111: 0.69 | CA111: 44
A112: '459376' | B112: 1932 | C112: 12 | D112: 1.66 | E112: 31.3 | F112: 20.7 | G112: 10 | L112: 1932-12-01 | BX112: 1998 | BY112: 4 | BZ112: 1.49 | CA112: 46.6
A113: '459376' | B113: 1933 | C113: 1 | D113: 1.16 | E113: 30.2 | F113: 20.6 | G113: 10.9 | L113: 1933-01-01 | M113: =SUM($D112:$D114) -> 3.31 | N113: =M113/M$1052 -> 0.5726053916 | O113: =AVERAGE($E112:$E114) -> 30.66666667 | P113: =AVERAGE($F112:$F114) -> 19.76666667 | Q113: =AVERAGE($G112:$G114) -> 8.766666667 | R113: =SUM($D115:$D117) -> 2.68 | S113: =R113/R$1052 -> 1.076459618 | T113: =AVERAGE($E115:$E117) -> 58.06666667 | U113: =AVERAGE($F115:$F117) -> 44.2 | V113: =AVERAGE($G115:$G117) -> 30.3 | W113: =SUM($D118:$D120) -> 0.8 | X113: =W113/W$1052 -> 0.360689174 | Y113: =AVERAGE($E118:$E120) -> 85.43333333 | Z113: =AVERAGE($F118:$F120) -> 65.9 | AA113: =AVERAGE($G118:$G120) -> 46.33333333 | AB113: =SUM($D121:$D123) -> 3.4 | AC113: =AB113/AB$1052 -> 1.021167048 | AD113: =AVERAGE($E121:$E123) -> 57.63333333 | AE113: =AVERAGE($F121:$F123) -> 44.7 | AF113: =AVERAGE($G121:$G123) -> 31.7 | AG113: =SUM(D110:D121) -> 10.92 | AH113: =AG113/AG$1052 -> 0.7903974908 | AI113: =AVERAGE(E110:E121) -> 57.34166667 | AJ113: =AVERAGE(F110:F121) -> 43.31666667 | AK113: =AVERAGE(G110:G121) -> 29.225 | AL113: =SUM(D110:D115) -> 8.18 | AM113: =AL113/AL$1052 -> 0.8359145127 | AN113: =AVERAGE(E110:E115) -> 39.86666667 | AO113: =AVERAGE(F110:F115) -> 28.96666667 | AP113: =AVERAGE(G110:G115) -> 17.96666667 | BX113: 1999 | BY113: 4 | BZ113: 0.05 | CA113: 45.4
A114: '459376' | B114: 1933 | C114: 2 | D114: 0.49 | E114: 30.5 | F114: 18 | G114: 5.4 | L114: 1933-02-01 | BX114: 2000 | BY114: 4 | BZ114: 0.37 | CA114: 48.8
A115: '459376' | B115: 1933 | C115: 3 | D115: 1.33 | E115: 47.4 | F115: 35.7 | G115: 23.9 | L115: 1933-03-01 | BX115: 2001 | BY115: 4 | BZ115: 0.39 | CA115: 45.2
A116: '459376' | B116: 1933 | C116: 4 | D116: 0.06 | E116: 63.9 | F116: 47.5 | G116: 31.1 | L116: 1933-04-01 | BX116: 2002 | BY116: 4 | BZ116: 0.12 | CA116: 46.5
A117: '459376' | B117: 1933 | C117: 5 | D117: 1.29 | E117: 62.9 | F117: 49.4 | G117: 35.9 | L117: 1933-05-01 | BX117: 2003 | BY117: 4 | BZ117: 2.56 | CA117: 46.5
A118: '459376' | B118: 1933 | C118: 6 | D118: 0.39 | E118: 77.8 | F118: 60.1 | G118: 42.3 | L118: 1933-06-01 | BX118: 2004 | BY118: 4 | BZ118: 0.62 | CA118: 49.7
A119: '459376' | B119: 1933 | C119: 7 | D119: 0.21 | E119: 87.9 | F119: 68 | G119: 48.1 | L119: 1933-07-01 | BX119: 2005 | BY119: 4 | BZ119: 0.52 | CA119: 47.6
A120: '459376' | B120: 1933 | C120: 8 | D120: 0.2 | E120: 90.6 | F120: 69.6 | G120: 48.6 | L120: 1933-08-01 | BX120: 2006 | BY120: 4 | BZ120: 1.14 | CA120: 47.3
A121: '459376' | B121: 1933 | C121: 9 | D121: 0.59 | E121: 65.8 | F121: 51.4 | G121: 36.9 | L121: 1933-09-01 | BX121: 2007 | BY121: 4 | BZ121: 0.1 | CA121: 46
A122: '459376' | B122: 1933 | C122: 10 | D122: 1.4 | E122: 61.3 | F122: 46.2 | G122: 31.1 | L122: 1933-10-01 | BX122: 2008 | BY122: 4 | BZ122: 0.2 | CA122: 42.4
A123: '459376' | B123: 1933 | C123: 11 | D123: 1.41 | E123: 45.8 | F123: 36.5 | G123: 27.1 | L123: 1933-11-01 | BX123: 2009 | BY123: 4 | BZ123: 0.35 | CA123: 45.7
A124: '459376' | B124: 1933 | C124: 12 | D124: 5.47 | E124: 34 | F124: 28.2 | G124: 22.3 | L124: 1933-12-01 | BX124: 2010 | BY124: 4 | BZ124: 1.38 | CA124: 46.1
A125: '459376' | B125: 1934 | C125: 1 | D125: 1.95 | E125: 33.3 | F125: 23.5 | G125: 13.6 | L125: 1934-01-01 | M125: =SUM($D124:$D126) -> 7.66 | N125: =M125/M$1052 -> 1.325123051 | O125: =AVERAGE($E124:$E126) -> 36.13333333 | P125: =AVERAGE($F124:$F126) -> 27 | Q125: =AVERAGE($G124:$G126) -> 17.76666667 | R125: =SUM($D127:$D129) -> 1.83 | S125: =R125/R$1052 -> 0.7350451872 | T125: =AVERAGE($E127:$E129) -> 67.36666667 | U125: =AVERAGE($F127:$F129) -> 50.06666667 | V125: =AVERAGE($G127:$G129) -> 32.73333333 | W125: =SUM($D130:$D132) -> 0.71 | X125: =W125/W$1052 -> 0.3201116419 | Y125: =AVERAGE($E130:$E132) -> 85.03333333 | Z125: =AVERAGE($F130:$F132) -> 66.4 | AA125: =AVERAGE($G130:$G132) -> 47.73333333 | AB125: =SUM($D133:$D135) -> 6.7 | AC125: =AB125/AB$1052 -> 2.012299771 | AD125: =AVERAGE($E133:$E135) -> 57.6 | AE125: =AVERAGE($F133:$F135) -> 45.83333333 | AF125: =AVERAGE($G133:$G135) -> 34.06666667 | AG125: =SUM(D122:D133) -> 13.74 | AH125: =AG125/AG$1052 -> 0.9945111285 | AI125: =AVERAGE(E122:E133) -> 61.6 | AJ125: =AVERAGE(F122:F133) -> 47.11666667 | AK125: =AVERAGE(G122:G133) -> 32.58333333 | AL125: =SUM(D122:D127) -> 11.53 | AM125: =AL125/AL$1052 -> 1.178251141 | AN125: =AVERAGE(E122:E127) -> 45 | AO125: =AVERAGE(F122:F127) -> 33.9 | AP125: =AVERAGE(G122:G127) -> 22.73333333 | BX125: 1981 | BY125: 5 | BZ125: 2.14 | CA125: 53 | CB125: =AVERAGE(BZ125:BZ154) -> 1.095 | CC125: =AVERAGE(CA125:CA154) -> 54.48
A126: '459376' | B126: 1934 | C126: 2 | D126: 0.24 | E126: 41.1 | F126: 29.3 | G126: 17.4 | L126: 1934-02-01 | BX126: 1982 | BY126: 5 | BZ126: 0.94 | CA126: 52.4
A127: '459376' | B127: 1934 | C127: 3 | D127: 1.06 | E127: 54.5 | F127: 39.7 | G127: 24.9 | L127: 1934-03-01 | BX127: 1983 | BY127: 5 | BZ127: 0.3 | CA127: 55.4
A128: '459376' | B128: 1934 | C128: 4 | D128: 0.29 | E128: 73 | F128: 54 | G128: 34.9 | L128: 1934-04-01 | BX128: 1984 | BY128: 5 | BZ128: 0.69 | CA128: 50.1
A129: '459376' | B129: 1934 | C129: 5 | D129: 0.48 | E129: 74.6 | F129: 56.5 | G129: 38.4 | L129: 1934-05-01 | BX129: 1985 | BY129: 5 | BZ129: 0.76 | CA129: 55.8
A130: '459376' | B130: 1934 | C130: 6 | D130: 0.24 | E130: 80.2 | F130: 63.3 | G130: 46.4 | L130: 1934-06-01 | BX130: 1986 | BY130: 5 | BZ130: 0.19 | CA130: 55.1
A131: '459376' | B131: 1934 | C131: 7 | D131: 0.17 | E131: 87 | F131: 67.7 | G131: 48.4 | L131: 1934-07-01 | BX131: 1987 | BY131: 5 | BZ131: 1.17 | CA131: 56.4
A132: '459376' | B132: 1934 | C132: 8 | D132: 0.3 | E132: 87.9 | F132: 68.2 | G132: 48.4 | L132: 1934-08-01 | BX132: 1988 | BY132: 5 | BZ132: 0.61 | CA132: 54.3
A133: '459376' | B133: 1934 | C133: 9 | D133: 0.73 | E133: 66.5 | F133: 52.3 | G133: 38.1 | L133: 1934-09-01 | BX133: 1989 | BY133: 5 | BZ133: 1.88 | CA133: 53.4
A134: '459376' | B134: 1934 | C134: 10 | D134: 2.82 | E134: 59.9 | F134: 47.3 | G134: 34.7 | L134: 1934-10-01 | BX134: 1990 | BY134: 5 | BZ134: 3.21 | CA134: 52.9
A135: '459376' | B135: 1934 | C135: 11 | D135: 3.15 | E135: 46.4 | F135: 37.9 | G135: 29.4 | L135: 1934-11-01 | BX135: 1991 | BY135: 5 | BZ135: 1.47 | CA135: 53.7
A136: '459376' | B136: 1934 | C136: 12 | D136: 2.78 | E136: 30.3 | F136: 22.9 | G136: 15.5 | L136: 1934-12-01 | BX136: 1992 | BY136: 5 | BZ136: 0 | CA136: 57.5
A137: '459376' | B137: 1935 | C137: 1 | D137: 0.99 | E137: 28.4 | F137: 19.6 | G137: 10.7 | L137: 1935-01-01 | M137: =SUM($D136:$D138) -> 4.38 | N137: =M137/M$1052 -> 0.7577074366 | O137: =AVERAGE($E136:$E138) -> 32.1 | P137: =AVERAGE($F136:$F138) -> 22.96666667 | Q137: =AVERAGE($G136:$G138) -> 13.76666667 | R137: =SUM($D139:$D141) -> 1.16 | S137: =R137/R$1052 -> 0.4659302826 | T137: =AVERAGE($E139:$E141) -> 59.16666667 | U137: =AVERAGE($F139:$F141) -> 43.5 | V137: =AVERAGE($G139:$G141) -> 27.83333333 | W137: =SUM($D142:$D144) -> 0.77 | X137: =W137/W$1052 -> 0.3471633299 | Y137: =AVERAGE($E142:$E144) -> 82.06666667 | Z137: =AVERAGE($F142:$F144) -> 63.93333333 | AA137: =AVERAGE($G142:$G144) -> 45.73333333 | AB137: =SUM($D145:$D147) -> 1.16 | AC137: =AB137/AB$1052 -> 0.3483981693 | AD137: =AVERAGE($E145:$E147) -> 58.73333333 | AE137: =AVERAGE($F145:$F147) -> 44.23333333 | AF137: =AVERAGE($G145:$G147) -> 29.7 | AG137: =SUM(D134:D145) -> 12.46 | AH137: =AG137/AG$1052 -> 0.9018638036 | AI137: =AVERAGE(E134:E145) -> 58.71666667 | AJ137: =AVERAGE(F134:F145) -> 44.66666667 | AK137: =AVERAGE(G134:G145) -> 30.575 | AL137: =SUM(D134:D139) -> 11.27 | AM137: =AL137/AL$1052 -> 1.151681731 | AN137: =AVERAGE(E134:E139) -> 41.23333333 | AO137: =AVERAGE(F134:F139) -> 31.06666667 | AP137: =AVERAGE(G134:G139) -> 20.86666667 | BX137: 1993 | BY137: 5 | BZ137: 0.95 | CA137: 59.6
A138: '459376' | B138: 1935 | C138: 2 | D138: 0.61 | E138: 37.6 | F138: 26.4 | G138: 15.1 | L138: 1935-02-01 | BX138: 1994 | BY138: 5 | BZ138: 1.04 | CA138: 55.9
A139: '459376' | B139: 1935 | C139: 3 | D139: 0.92 | E139: 44.8 | F139: 32.3 | G139: 19.8 | L139: 1935-03-01 | BX139: 1995 | BY139: 5 | BZ139: 0.93 | CA139: 57.1
A140: '459376' | B140: 1935 | C140: 4 | D140: 0 | E140: 60.9 | F140: 44.3 | G140: 27.7 | L140: 1935-04-01 | BX140: 1996 | BY140: 5 | BZ140: 1.33 | CA140: 50.5
A141: '459376' | B141: 1935 | C141: 5 | D141: 0.24 | E141: 71.8 | F141: 53.9 | G141: 36 | L141: 1935-05-01 | BX141: 1997 | BY141: 5 | BZ141: 1.64 | CA141: 55.8
A142: '459376' | B142: 1935 | C142: 6 | D142: 0.01 | E142: 79.1 | F142: 61.7 | G142: 44.2 | L142: 1935-06-01 | BX142: 1998 | BY142: 5 | BZ142: 2.57 | CA142: 57.5
A143: '459376' | B143: 1935 | C143: 7 | D143: 0.59 | E143: 82.9 | F143: 65.5 | G143: 48 | L143: 1935-07-01 | BX143: 1999 | BY143: 5 | BZ143: 0.55 | CA143: 51
A144: '459376' | B144: 1935 | C144: 8 | D144: 0.17 | E144: 84.2 | F144: 64.6 | G144: 45 | L144: 1935-08-01 | BX144: 2000 | BY144: 5 | BZ144: 0.83 | CA144: 53.3
A145: '459376' | B145: 1935 | C145: 9 | D145: 0.18 | E145: 78.3 | F145: 59.6 | G145: 40.8 | L145: 1935-09-01 | BX145: 2001 | BY145: 5 | BZ145: 0.06 | CA145: 55.2
A146: '459376' | B146: 1935 | C146: 10 | D146: 0.39 | E146: 60.4 | F146: 45 | G146: 29.6 | L146: 1935-10-01 | BX146: 2002 | BY146: 5 | BZ146: 0.66 | CA146: 51.9
A147: '459376' | B147: 1935 | C147: 11 | D147: 0.59 | E147: 37.5 | F147: 28.1 | G147: 18.7 | L147: 1935-11-01 | BX147: 2003 | BY147: 5 | BZ147: 0.08 | CA147: 53.1
A148: '459376' | B148: 1935 | C148: 12 | D148: 1.26 | E148: 29.4 | F148: 22.5 | G148: 15.6 | L148: 1935-12-01 | BX148: 2004 | BY148: 5 | BZ148: 1.15 | CA148: 54
A149: '459376' | B149: 1936 | C149: 1 | D149: 2.34 | E149: 28.4 | F149: 18.7 | G149: 9 | L149: 1936-01-01 | M149: =SUM($D148:$D150) -> 5.14 | N149: =M149/M$1052 -> 0.8891817864 | O149: =AVERAGE($E148:$E150) -> 25.9 | P149: =AVERAGE($F148:$F150) -> 15.73333333 | Q149: =AVERAGE($G148:$G150) -> 5.566666667 | R149: =SUM($D151:$D153) -> 1.77 | S149: =R149/R$1052 -> 0.710945345 | T149: =AVERAGE($E151:$E153) -> 62.63333333 | U149: =AVERAGE($F151:$F153) -> 46.83333333 | V149: =AVERAGE($G151:$G153) -> 30.93333333 | W149: =SUM($D154:$D156) -> 4.96 | X149: =W149/W$1052 -> 2.236272879 | Y149: =AVERAGE($E154:$E156) -> 83.7 | Z149: =AVERAGE($F154:$F156) -> 65.7 | AA149: =AVERAGE($G154:$G156) -> 47.7 | AB149: =SUM($D157:$D159) -> 0.82 | AC149: =AB149/AB$1052 -> 0.2462814645 | AD149: =AVERAGE($E157:$E159) -> 61.76666667 | AE149: =AVERAGE($F157:$F159) -> 45.6 | AF149: =AVERAGE($G157:$G159) -> 29.36666667 | AG149: =SUM(D146:D157) -> 13.45 | AH149: =AG149/AG$1052 -> 0.973520719 | AI149: =AVERAGE(E146:E157) -> 57.45 | AJ149: =AVERAGE(F146:F157) -> 42.84166667 | AK149: =AVERAGE(G146:G157) -> 28.2 | AL149: =SUM(D146:D151) -> 6.34 | AM149: =AL149/AL$1052 -> 0.6478848424 | AN149: =AVERAGE(E146:E151) -> 36.78333333 | AO149: =AVERAGE(F146:F151) -> 25.48333333 | AP149: =AVERAGE(G146:G151) -> 14.16666667 | BX149: 2005 | BY149: 5 | BZ149: 1.15 | CA149: 57.2
A150: '459376' | B150: 1936 | C150: 2 | D150: 1.54 | E150: 19.9 | F150: 6 | G150: -7.9 | L150: 1936-02-01 | BX150: 2006 | BY150: 5 | BZ150: 1.11 | CA150: 54.5
A151: '459376' | B151: 1936 | C151: 3 | D151: 0.22 | E151: 45.1 | F151: 32.6 | G151: 20 | L151: 1936-03-01 | BX151: 2007 | BY151: 5 | BZ151: 0.44 | CA151: 55.3
A152: '459376' | B152: 1936 | C152: 4 | D152: 0.52 | E152: 66.3 | F152: 49.1 | G152: 31.8 | L152: 1936-04-01 | BX152: 2008 | BY152: 5 | BZ152: 0.53 | CA152: 57.7
A153: '459376' | B153: 1936 | C153: 5 | D153: 1.03 | E153: 76.5 | F153: 58.8 | G153: 41 | L153: 1936-05-01 | BX153: 2009 | BY153: 5 | BZ153: 0.81 | CA153: 54.3
A154: '459376' | B154: 1936 | C154: 6 | D154: 4.23 | E154: 77.2 | F154: 61.5 | G154: 45.8 | L154: 1936-06-01 | BX154: 2010 | BY154: 5 | BZ154: 3.66 | CA154: 50.5
A155: '459376' | B155: 1936 | C155: 7 | D155: 0.56 | E155: 87.7 | F155: 68.3 | G155: 48.9 | L155: 1936-07-01 | BX155: 1981 | BY155: 6 | BZ155: 0.5 | CA155: 56.3 | CB155: =AVERAGE(BZ155:BZ184) -> 1.149666667 | CC155: =AVERAGE(CA155:CA184) -> 61.00333333
A156: '459376' | B156: 1936 | C156: 8 | D156: 0.17 | E156: 86.2 | F156: 67.3 | G156: 48.4 | L156: 1936-08-01 | BX156: 1982 | BY156: 6 | BZ156: 0.52 | CA156: 64.3
A157: '459376' | B157: 1936 | C157: 9 | D157: 0.6 | E157: 74.8 | F157: 56.2 | G157: 37.5 | L157: 1936-09-01 | BX157: 1983 | BY157: 6 | BZ157: 0.79 | CA157: 60.1
A158: '459376' | B158: 1936 | C158: 10 | D158: 0.21 | E158: 69 | F158: 50.8 | G158: 32.6 | L158: 1936-10-01 | BX158: 1984 | BY158: 6 | BZ158: 1.29 | CA158: 58.8
A159: '459376' | B159: 1936 | C159: 11 | D159: 0.01 | E159: 41.5 | F159: 29.8 | G159: 18 | L159: 1936-11-01 | BX159: 1985 | BY159: 6 | BZ159: 0.66 | CA159: 61
A160: '459376' | B160: 1936 | C160: 12 | D160: 1.66 | E160: 33.7 | F160: 24.7 | G160: 15.7 | L160: 1936-12-01 | BX160: 1986 | BY160: 6 | BZ160: 0.95 | CA160: 65.4
A161: '459376' | B161: 1937 | C161: 1 | D161: 0.95 | E161: 14.6 | F161: 3.1 | G161: -8.5 | L161: 1937-01-01 | M161: =SUM($D160:$D162) -> 4.6 | N161: =M161/M$1052 -> 0.795765801 | O161: =AVERAGE($E160:$E162) -> 26.4 | P161: =AVERAGE($F160:$F162) -> 15.56666667 | Q161: =AVERAGE($G160:$G162) -> 4.666666667 | R161: =SUM($D163:$D165) -> 3.76 | S161: =R161/R$1052 -> 1.510256778 | T161: =AVERAGE($E163:$E165) -> 59.73333333 | U161: =AVERAGE($F163:$F165) -> 45.53333333 | V161: =AVERAGE($G163:$G165) -> 31.23333333 | W161: =SUM($D166:$D168) -> 3.47 | X161: =W161/W$1052 -> 1.564489292 | Y161: =AVERAGE($E166:$E168) -> 81.26666667 | Z161: =AVERAGE($F166:$F168) -> 64.63333333 | AA161: =AVERAGE($G166:$G168) -> 47.93333333 | AB161: =SUM($D169:$D171) -> 5.59 | AC161: =AB161/AB$1052 -> 1.678918764 | AD161: =AVERAGE($E169:$E171) -> 62.6 | AE161: =AVERAGE($F169:$F171) -> 48.53333333 | AF161: =AVERAGE($G169:$G171) -> 34.43333333 | AG161: =SUM(D158:D169) -> 14.2 | AH161: =AG161/AG$1052 -> 1.027806261 | AI161: =AVERAGE(E158:E169) -> 57.56666667 | AJ161: =AVERAGE(F158:F169) -> 43.16666667 | AK161: =AVERAGE(G158:G169) -> 28.7 | AL161: =SUM(D158:D163) -> 6.67 | AM161: =AL161/AL$1052 -> 0.681607555 | AN161: =AVERAGE(E158:E163) -> 39.9 | AO161: =AVERAGE(F158:F163) -> 27.56666667 | AP161: =AVERAGE(G158:G163) -> 15.16666667 | BX161: 1987 | BY161: 6 | BZ161: 1.04 | CA161: 64.3
A162: '459376' | B162: 1937 | C162: 2 | D162: 1.99 | E162: 30.9 | F162: 18.9 | G162: 6.8 | L162: 1937-02-01 | BX162: 1988 | BY162: 6 | BZ162: 1.89 | CA162: 60.5
A163: '459376' | B163: 1937 | C163: 3 | D163: 1.85 | E163: 49.7 | F163: 38.1 | G163: 26.4 | L163: 1937-03-01 | BX163: 1989 | BY163: 6 | BZ163: 0.34 | CA163: 63.9
A164: '459376' | B164: 1937 | C164: 4 | D164: 1.65 | E164: 58.3 | F164: 44.7 | G164: 31 | L164: 1937-04-01 | BX164: 1990 | BY164: 6 | BZ164: 1.84 | CA164: 59.6
A165: '459376' | B165: 1937 | C165: 5 | D165: 0.26 | E165: 71.2 | F165: 53.8 | G165: 36.3 | L165: 1937-05-01 | BX165: 1991 | BY165: 6 | BZ165: 1.31 | CA165: 57.7
A166: '459376' | B166: 1937 | C166: 6 | D166: 3.16 | E166: 76.1 | F166: 61.1 | G166: 46.1 | L166: 1937-06-01 | BX166: 1992 | BY166: 6 | BZ166: 3.33 | CA166: 67
A167: '459376' | B167: 1937 | C167: 7 | D167: 0 | E167: 87.4 | F167: 69.6 | G167: 51.7 | L167: 1937-07-01 | BX167: 1993 | BY167: 6 | BZ167: 2.78 | CA167: 59.4
A168: '459376' | B168: 1937 | C168: 8 | D168: 0.31 | E168: 80.3 | F168: 63.2 | G168: 46 | L168: 1937-08-01 | BX168: 1994 | BY168: 6 | BZ168: 0.75 | CA168: 59.3
A169: '459376' | B169: 1937 | C169: 9 | D169: 2.15 | E169: 78.1 | F169: 60.2 | G169: 42.3 | L169: 1937-09-01 | BX169: 1995 | BY169: 6 | BZ169: 1.07 | CA169: 60.5
A170: '459376' | B170: 1937 | C170: 10 | D170: 0.34 | E170: 65.7 | F170: 50.2 | G170: 34.6 | L170: 1937-10-01 | BX170: 1996 | BY170: 6 | BZ170: 0.61 | CA170: 59.3
A171: '459376' | B171: 1937 | C171: 11 | D171: 3.1 | E171: 44 | F171: 35.2 | G171: 26.4 | L171: 1937-11-01 | BX171: 1997 | BY171: 6 | BZ171: 2.8 | CA171: 58.6
A172: '459376' | B172: 1937 | C172: 12 | D172: 2.2 | E172: 33 | F172: 25 | G172: 16.9 | L172: 1937-12-01 | BX172: 1998 | BY172: 6 | BZ172: 1.47 | CA172: 61.5
A173: '459376' | B173: 1938 | C173: 1 | D173: 0.85 | E173: 29.3 | F173: 21.1 | G173: 12.9 | L173: 1938-01-01 | M173: =SUM($D172:$D174) -> 6.1 | N173: =M173/M$1052 -> 1.055254649 | O173: =AVERAGE($E172:$E174) -> 32.56666667 | P173: =AVERAGE($F172:$F174) -> 23.53333333 | Q173: =AVERAGE($G172:$G174) -> 14.46666667 | R173: =SUM($D175:$D177) -> 1.69 | S173: =R173/R$1052 -> 0.6788122221 | T173: =AVERAGE($E175:$E177) -> 60.8 | U173: =AVERAGE($F175:$F177) -> 46.06666667 | V173: =AVERAGE($G175:$G177) -> 31.33333333 | W173: =SUM($D178:$D180) -> 1.75 | X173: =W173/W$1052 -> 0.789007568 | Y173: =AVERAGE($E178:$E180) -> 86.03333333 | Z173: =AVERAGE($F178:$F180) -> 67.1 | AA173: =AVERAGE($G178:$G180) -> 48.13333333 | AB173: =SUM($D181:$D183) -> 3.23 | AC173: =AB173/AB$1052 -> 0.9701086957 | AD173: =AVERAGE($E181:$E183) -> 62.63333333 | AE173: =AVERAGE($F181:$F183) -> 47.96666667 | AF173: =AVERAGE($G181:$G183) -> 33.26666667 | AG173: =SUM(D170:D181) -> 14.29 | AH173: =AG173/AG$1052 -> 1.034320526 | AI173: =AVERAGE(E170:E181) -> 60.86666667 | AJ173: =AVERAGE(F170:F181) -> 46.56666667 | AK173: =AVERAGE(G170:G181) -> 32.24166667 | AL173: =SUM(D170:D175) -> 10.98 | AM173: =AL173/AL$1052 -> 1.12204662 | AN173: =AVERAGE(E170:E175) -> 42.46666667 | AO173: =AVERAGE(F170:F175) -> 31.96666667 | AP173: =AVERAGE(G170:G175) -> 21.43333333 | BX173: 1999 | BY173: 6 | BZ173: 0.44 | CA173: 58.8
A174: '459376' | B174: 1938 | C174: 2 | D174: 3.05 | E174: 35.4 | F174: 24.5 | G174: 13.6 | L174: 1938-02-01 | BX174: 2000 | BY174: 6 | BZ174: 0.45 | CA174: 60.9
A175: '459376' | B175: 1938 | C175: 3 | D175: 1.44 | E175: 47.4 | F175: 35.8 | G175: 24.2 | L175: 1938-03-01 | BX175: 2001 | BY175: 6 | BZ175: 0.8 | CA175: 58.6
A176: '459376' | B176: 1938 | C176: 4 | D176: 0.25 | E176: 63.7 | F176: 47.6 | G176: 31.5 | L176: 1938-04-01 | BX176: 2002 | BY176: 6 | BZ176: 0.16 | CA176: 62.5
A177: '459376' | B177: 1938 | C177: 5 | D177: 0 | E177: 71.3 | F177: 54.8 | G177: 38.3 | L177: 1938-05-01 | BX177: 2003 | BY177: 6 | BZ177: 0.01 | CA177: 63.4
A178: '459376' | B178: 1938 | C178: 6 | D178: 0.58 | E178: 83.4 | F178: 64.7 | G178: 45.9 | L178: 1938-06-01 | BX178: 2004 | BY178: 6 | BZ178: 1.48 | CA178: 63.2
A179: '459376' | B179: 1938 | C179: 7 | D179: 0.91 | E179: 90.5 | F179: 71.6 | G179: 52.7 | L179: 1938-07-01 | BX179: 2005 | BY179: 6 | BZ179: 1.53 | CA179: 60.2
A180: '459376' | B180: 1938 | C180: 8 | D180: 0.26 | E180: 84.2 | F180: 65 | G180: 45.8 | L180: 1938-08-01 | BX180: 2006 | BY180: 6 | BZ180: 1.99 | CA180: 62.3
A181: '459376' | B181: 1938 | C181: 9 | D181: 1.31 | E181: 82.5 | F181: 63.3 | G181: 44.1 | L181: 1938-09-01 | BX181: 2007 | BY181: 6 | BZ181: 0.64 | CA181: 60.5
A182: '459376' | B182: 1938 | C182: 10 | D182: 1.09 | E182: 62.8 | F182: 48.3 | G182: 33.8 | L182: 1938-10-01 | BX182: 2008 | BY182: 6 | BZ182: 0.97 | CA182: 60.2
A183: '459376' | B183: 1938 | C183: 11 | D183: 0.83 | E183: 42.6 | F183: 32.3 | G183: 21.9 | L183: 1938-11-01 | BX183: 2009 | BY183: 6 | BZ183: 0.76 | CA183: 62.8
A184: '459376' | B184: 1938 | C184: 12 | D184: 1.31 | E184: 30.1 | F184: 21 | G184: 11.8 | L184: 1938-12-01 | BX184: 2010 | BY184: 6 | BZ184: 1.32 | CA184: 59.2
A185: '459376' | B185: 1939 | C185: 1 | D185: 0.67 | E185: 33.8 | F185: 25 | G185: 16.2 | L185: 1939-01-01 | M185: =SUM($D184:$D186) -> 2.8 | N185: =M185/M$1052 -> 0.4843791832 | O185: =AVERAGE($E184:$E186) -> 33.03333333 | P185: =AVERAGE($F184:$F186) -> 22.93333333 | Q185: =AVERAGE($G184:$G186) -> 12.76666667 | R185: =SUM($D187:$D189) -> 0.88 | S185: =R185/R$1052 -> 0.3534643523 | T185: =AVERAGE($E187:$E189) -> 62.23333333 | U185: =AVERAGE($F187:$F189) -> 46.76666667 | V185: =AVERAGE($G187:$G189) -> 31.23333333 | W185: =SUM($D190:$D192) -> 0.89 | X185: =W185/W$1052 -> 0.401266706 | Y185: =AVERAGE($E190:$E192) -> 84.03333333 | Z185: =AVERAGE($F190:$F192) -> 66.1 | AA185: =AVERAGE($G190:$G192) -> 48.1 | AB185: =SUM($D193:$D195) -> 1.29 | AC185: =AB185/AB$1052 -> 0.3874427918 | AD185: =AVERAGE($E193:$E195) -> 62.36666667 | AE185: =AVERAGE($F193:$F195) -> 47.53333333 | AF185: =AVERAGE($G193:$G195) -> 32.63333333 | AG185: =SUM(D182:D193) -> 6.94 | AH185: =AG185/AG$1052 -> 0.5023222149 | AI185: =AVERAGE(E182:E193) -> 60.14166667 | AJ185: =AVERAGE(F182:F193) -> 45.63333333 | AK185: =AVERAGE(G182:G193) -> 31.05833333 | AL185: =SUM(D182:D187) -> 5.05 | AM185: =AL185/AL$1052 -> 0.5160596931 | AN185: =AVERAGE(E182:E187) -> 41.91666667 | AO185: =AVERAGE(F182:F187) -> 30.63333333 | AP185: =AVERAGE(G182:G187) -> 19.28333333 | BX185: 1981 | BY185: 7 | BZ185: 1.18 | CA185: 64.8 | CB185: =AVERAGE(BZ185:BZ214) -> 0.726 | CC185: =AVERAGE(CA185:CA214) -> 67.35666667
A186: '459376' | B186: 1939 | C186: 2 | D186: 0.82 | E186: 35.2 | F186: 22.8 | G186: 10.3 | L186: 1939-02-01 | BX186: 1982 | BY186: 7 | BZ186: 1.29 | CA186: 64.7
A187: '459376' | B187: 1939 | C187: 3 | D187: 0.33 | E187: 47 | F187: 34.4 | G187: 21.7 | L187: 1939-03-01 | BX187: 1983 | BY187: 7 | BZ187: 0.71 | CA187: 62.2
A188: '459376' | B188: 1939 | C188: 4 | D188: 0.05 | E188: 66.8 | F188: 49.9 | G188: 32.9 | L188: 1939-04-01 | BX188: 1984 | BY188: 7 | BZ188: 0.02 | CA188: 67.3
A189: '459376' | B189: 1939 | C189: 5 | D189: 0.5 | E189: 72.9 | F189: 56 | G189: 39.1 | L189: 1939-05-01 | BX189: 1985 | BY189: 7 | BZ189: 0.05 | CA189: 71.2
A190: '459376' | B190: 1939 | C190: 6 | D190: 0.54 | E190: 75.4 | F190: 60 | G190: 44.6 | L190: 1939-06-01 | BX190: 1986 | BY190: 7 | BZ190: 0.17 | CA190: 64.2
A191: '459376' | B191: 1939 | C191: 7 | D191: 0 | E191: 87.6 | F191: 69.4 | G191: 51.1 | L191: 1939-07-01 | BX191: 1987 | BY191: 7 | BZ191: 1.27 | CA191: 67
A192: '459376' | B192: 1939 | C192: 8 | D192: 0.35 | E192: 89.1 | F192: 68.9 | G192: 48.6 | L192: 1939-08-01 | BX192: 1988 | BY192: 7 | BZ192: 0.22 | CA192: 67.1
A193: '459376' | B193: 1939 | C193: 9 | D193: 0.45 | E193: 78.4 | F193: 59.6 | G193: 40.7 | L193: 1939-09-01 | BX193: 1989 | BY193: 7 | BZ193: 0.72 | CA193: 66.5
A194: '459376' | B194: 1939 | C194: 10 | D194: 0.5 | E194: 62 | F194: 47.6 | G194: 33.1 | L194: 1939-10-01 | BX194: 1990 | BY194: 7 | BZ194: 0.72 | CA194: 69.9
A195: '459376' | B195: 1939 | C195: 11 | D195: 0.34 | E195: 46.7 | F195: 35.4 | G195: 24.1 | L195: 1939-11-01 | BX195: 1991 | BY195: 7 | BZ195: 0.68 | CA195: 66.9
A196: '459376' | B196: 1939 | C196: 12 | D196: 3.43 | E196: 35.4 | F196: 28.9 | G196: 22.4 | L196: 1939-12-01 | BX196: 1992 | BY196: 7 | BZ196: 2.11 | CA196: 66.4
A197: '459376' | B197: 1940 | C197: 1 | D197: 1.32 | E197: 31.2 | F197: 22.4 | G197: 13.6 | L197: 1940-01-01 | M197: =SUM($D196:$D198) -> 7.07 | N197: =M197/M$1052 -> 1.223057438 | O197: =AVERAGE($E196:$E198) -> 35.03333333 | P197: =AVERAGE($F196:$F198) -> 26.63333333 | Q197: =AVERAGE($G196:$G198) -> 18.23333333 | R197: =SUM($D199:$D201) -> 2.87 | S197: =R197/R$1052 -> 1.152775785 | T197: =AVERAGE($E199:$E201) -> 63.5 | U197: =AVERAGE($F199:$F201) -> 49.1 | V197: =AVERAGE($G199:$G201) -> 34.66666667 | W197: =SUM($D202:$D204) -> 0.3 | X197: =W197/W$1052 -> 0.1352584402 | Y197: =AVERAGE($E202:$E204) -> 85.4 | Z197: =AVERAGE($F202:$F204) -> 67.26666667 | AA197: =AVERAGE($G202:$G204) -> 49.1 | AB197: =SUM($D205:$D207) -> 5.14 | AC197: =AB197/AB$1052 -> 1.543764302 | AD197: =AVERAGE($E205:$E207) -> 60.4 | AE197: =AVERAGE($F205:$F207) -> 47.5 | AF197: =AVERAGE($G205:$G207) -> 34.53333333 | AG197: =SUM(D194:D205) -> 12.33 | AH197: =AG197/AG$1052 -> 0.8924543097 | AI197: =AVERAGE(E194:E205) -> 61.70833333 | AJ197: =AVERAGE(F194:F205) -> 47.9 | AK197: =AVERAGE(G194:G205) -> 34.05833333 | AL197: =SUM(D194:D199) -> 9.06 | AM197: =AL197/AL$1052 -> 0.9258417464 | AN197: =AVERAGE(E194:E199) -> 44.48333333 | AO197: =AVERAGE(F194:F199) -> 33.9 | AP197: =AVERAGE(G194:G199) -> 23.28333333 | BX197: 1993 | BY197: 7 | BZ197: 3.52 | CA197: 61.6
A198: '459376' | B198: 1940 | C198: 2 | D198: 2.32 | E198: 38.5 | F198: 28.6 | G198: 18.7 | L198: 1940-02-01 | BX198: 1994 | BY198: 7 | BZ198: 0.2 | CA198: 70
A199: '459376' | B199: 1940 | C199: 3 | D199: 1.15 | E199: 53.1 | F199: 40.5 | G199: 27.8 | L199: 1940-03-01 | BX199: 1995 | BY199: 7 | BZ199: 0.15 | CA199: 67.5
A200: '459376' | B200: 1940 | C200: 4 | D200: 0.81 | E200: 63.6 | F200: 49.8 | G200: 36 | L200: 1940-04-01 | BX200: 1996 | BY200: 7 | BZ200: 0.51 | CA200: 67.7
... 849 more rows

Sheet chart_titles
A1: Chart titles
A2: Mean and Distribution of Recent Monthly Precipitation 1981-2010 | B2: =A2&data!G1 -> Mean and Distribution of Recent Monthly Precipitation 1981-2010 USHCN STATION: WINTHROP 1 WSW, WA (459376) | O2: Change in WY Pcp from 1981-2010 | P2: =O2&data!BM$2&$V$2 -> Change in WY Pcp from 1981-2010 -1.8% | V2: % | X2: 1981-2010 Mean Annual Total Pcp | AA2: =ROUND(AVERAGE(data!BM61:BM90),1) -> 14.5 | AB2: in | AC2: =X2&AA2&AB2 -> 1981-2010 Mean Annual Total Pcp 14.5 in
A3: Mean and Distribution of Recent Monthly Temperatures 1981-2010 | B3: =A3&data!G1 -> Mean and Distribution of Recent Monthly Temperatures 1981-2010 USHCN STATION: WINTHROP 1 WSW, WA (459376) | O3: Change in WY Max T from 1981-2010 | P3: =O3&data!BO$2&$V$3 -> Change in WY Max T from 1981-2010 0.28˚F | V3: ˚F | X3: 1981-2010 Mean Annual Temp | AA3: =ROUND(AVERAGE(data!BP60:BP90),1) -> 45.1 | AB3: ˚F | AC3: =X3&AA3&AB3 -> 1981-2010 Mean Annual Temp 45.1˚F
A4: Water Year Total Precipitation 1925-2010 | B4: =A4&data!G1 -> Water Year Total Precipitation 1925-2010 USHCN STATION: WINTHROP 1 WSW, WA (459376) | O4: Change in WY Avg T from 1981-2010 | P4: =O4&data!BP$2&$V$3 -> Change in WY Avg T from 1981-2010 1.14˚F
A5: Water Year Temperature 1925-2010 | B5: =A5&data!G1 -> Water Year Temperature 1925-2010 USHCN STATION: WINTHROP 1 WSW, WA (459376) | O5: Change in WY Min T from 1981-2010 | P5: =O5&data!BQ$2&$V$3 -> Change in WY Min T from 1981-2010 2.03˚F
A6: Oct-Mar Cool Season Precipitation 1925-2010 | B6: =A6&data!G1 -> Oct-Mar Cool Season Precipitation 1925-2010 USHCN STATION: WINTHROP 1 WSW, WA (459376) | O6: Change in Oct-Mar Pcp from 1981-2010 | P6: =O6&data!BR$2&$V$2 -> Change in Oct-Mar Pcp from 1981-2010 2.9%
A7: Oct-Mar Cool Season Temperature 1925-2010 | B7: =A7&data!G1 -> Oct-Mar Cool Season Temperature 1925-2010 USHCN STATION: WINTHROP 1 WSW, WA (459376) | O7: Change in Oct-Mar Max T from 1981-2010 | P7: =O7&data!BT$2&$V$3 -> Change in Oct-Mar Max T from 1981-2010 0.3˚F
A8: Oct-Mar Total Precipitation v Southern Oscillation Index 1952-2010 | B8: =A8&data!G1 -> Oct-Mar Total Precipitation v Southern Oscillation Index 1952-2010 USHCN STATION: WINTHROP 1 WSW, WA (459376) | O8: Change in Oct-Mar Avg T from 1981-2010 | P8: =O8&data!BU$2&$V$3 -> Change in Oct-Mar Avg T from 1981-2010 1.06˚F
A9: Oct-Mar Average Temperature v Southern Oscillation Index 1952-2010 | B9: =A9&data!G1 -> Oct-Mar Average Temperature v Southern Oscillation Index 1952-2010 USHCN STATION: WINTHROP 1 WSW, WA (459376) | O9: Change in Oct-Mar Min T from 1981-2010 | P9: =O9&data!BV$2&$V$3 -> Change in Oct-Mar Min T from 1981-2010 1.84˚F
A10: Oct-Mar Total Precipitation v Pacific Decadal Oscillation 1952-2010 | B10: =A10&data!G1 -> Oct-Mar Total Precipitation v Pacific Decadal Oscillation 1952-2010 USHCN STATION: WINTHROP 1 WSW, WA (459376) | O10: Change in Winter Pcp from 1981-2010 | P10: =O10&data!AS$2&$V$2 -> Change in Winter Pcp from 1981-2010 7.7%
A11: Oct-Mar Average Temperature v Pacific Decadal Oscillation 1952-2010 | B11: =A11&data!G1 -> Oct-Mar Average Temperature v Pacific Decadal Oscillation 1952-2010 USHCN STATION: WINTHROP 1 WSW, WA (459376) | O11: Change in Winter Max T 1981-2010 | P11: =O11&data!AU$2&$V$3 -> Change in Winter Max T 1981-2010 1.52˚F
A12: Winter (Dec-Feb) Total Precipitation 1925-2010 | B12: =A12&data!G1 -> Winter (Dec-Feb) Total Precipitation 1925-2010 USHCN STATION: WINTHROP 1 WSW, WA (459376) | O12: Change in Winter Avg T 1981-2010 | P12: =O12&data!AV$2&$V$3 -> Change in Winter Avg T 1981-2010 1.98˚F
A13: Winter (Dec-Feb) Temperature 1925-2010 | B13: =A13&data!G1 -> Winter (Dec-Feb) Temperature 1925-2010 USHCN STATION: WINTHROP 1 WSW, WA (459376) | O13: Change in Winter Min T 1981-2010 | P13: =O13&data!AW$2&$V$3 -> Change in Winter Min T 1981-2010 2.46˚F
A14: Spring (Mar-May) Total Precipitation 1925-2010 | B14: =A14&data!G1 -> Spring (Mar-May) Total Precipitation 1925-2010 USHCN STATION: WINTHROP 1 WSW, WA (459376) | O14: Change in Spring Pcp from 1981-2010 | P14: =O14&data!AX$2&$V$2 -> Change in Spring Pcp from 1981-2010 -10.7%
A15: Spring (Mar-May) Temperature 1925-2010 | B15: =A15&data!G1 -> Spring (Mar-May) Temperature 1925-2010 USHCN STATION: WINTHROP 1 WSW, WA (459376) | O15: Change in Spring Max T 1981-2010 | P15: =O15&data!AZ$2&$V$3 -> Change in Spring Max T 1981-2010 -1.44˚F
A16: Summer (Jun-Aug) Total Precipitation 1925-2010 | B16: =A16&data!G1 -> Summer (Jun-Aug) Total Precipitation 1925-2010 USHCN STATION: WINTHROP 1 WSW, WA (459376) | O16: Change in Spring Avg T 1981-2010 | P16: =O16&data!BA$2&$V$3 -> Change in Spring Avg T 1981-2010 -0.27˚F
A17: Summer (Jun-Aug) Temperature 1925-2010 | B17: =A17&data!G1 -> Summer (Jun-Aug) Temperature 1925-2010 USHCN STATION: WINTHROP 1 WSW, WA (459376) | O17: Change in Spring Min T 1981-2010 | P17: =O17&data!BB$2&$V$3 -> Change in Spring Min T 1981-2010 0.92˚F
A18: Fall (Sep-Nov) Total Precipitation 1925-2010 | B18: =A18&data!G1 -> Fall (Sep-Nov) Total Precipitation 1925-2010 USHCN STATION: WINTHROP 1 WSW, WA (459376) | O18: Change in Summer Pcp from 1981-2010 | P18: =O18&data!BC$2&$V$2 -> Change in Summer Pcp from 1981-2010 -18.3%
A19: Fall (Sep-Nov) Temperature 1925-2010 | B19: =A19&data!G1 -> Fall (Sep-Nov) Temperature 1925-2010 USHCN STATION: WINTHROP 1 WSW, WA (459376) | O19: Change in Summer Max T 1981-2010 | P19: =O19&data!BE$2&$V$3 -> Change in Summer Max T 1981-2010 0.66˚F
O20: Change in Summer Avg T 1981-2010 | P20: =O20&data!BF$2&$V$3 -> Change in Summer Avg T 1981-2010 1.41˚F
O21: Change in Summer Min T 1981-2010 | P21: =O21&data!BG$2&$V$3 -> Change in Summer Min T 1981-2010 2.21˚F
O22: Change in Fall Pcp from 1981-2010 | P22: =O22&data!BH$2&$V$2 -> Change in Fall Pcp from 1981-2010 -7%
O23: Change in Fall Max T 1981-2010 | P23: =O23&data!BJ$2&$V$3 -> Change in Fall Max T 1981-2010 0.8˚F
O24: Change in Fall Avg T 1981-2010 | P24: =O24&data!BK$2&$V$3 -> Change in Fall Avg T 1981-2010 1.66˚F
O25: Change in Fall Min T 1981-2010 | P25: =O25&data!BL$2&$V$3 -> Change in Fall Min T 1981-2010 2.52˚F
